Workbook

Sheet 区行政服务中心（续建）
A1: 区行政服务中心（续建）2020年度政府投资计划
A3: 序号 | B3: 项目名称 | C3: 建设阶段 | D3: 项目分类 | E3: 牵头责任单位 | F3: 建设单位 | G3: 项目建设起止年限 | H3: 建设地点 | I3: 项目建设内容及规模 | J3: 总投资 （万元） | K3: 2020年度工作计划 | L3: 2020年计划投资 （工程量） （万元） | M3: 2020年资金安排计划（万元） | P3: 备注
M4: 合计 | N4: 资金安排
N5: 区财政预算资金 | O5: 其它来源资金
A6: 合计 | B6: 1宗 | J6: 2073 | L6: 336 | M6: 336 | N6: 336
A7: 1 | B7: “一门通办”升级改造工程 | C7: 续建 | D7: 公共服务 | E7: 惠州市惠阳区行政服务中心 | F7: 惠州市惠阳区行政服务中心 | G7: 2019年1月至2020年12月 | H7: 区行政服务中心A栋 | I7: 完成信息化、办公家具、空调、广告标识四个项目的设计、采购及安装工作 | J7: 2073 | K7: 完成信息化、广告标识质保金支付；空调项目的采购及安装工作 | L7: 336 | M7: =SUM(N7:O7) -> 336 | N7: 336

Sheet 区城投公司
A1: 区城投公司2020年度政府投资计划
A3: 序号 | B3: 项目名称 | C3: 建设阶段 | D3: 项目分类 | E3: 牵头责任单位 | F3: 建设单位 | G3: 项目建设起止年限 | H3: 建设地点 | I3: 项目建设内容及规模 | J3: 总投资 （万元） | K3: 2020年度工作计划 | L3: 2020年计划投资 （工程量） （万元） | M3: 2020年资金安排计划（万元） | P3: 备注
M4: 合计 | N4: 资金安排
N5: 区财政预算资金 | O5: 其它来源资金
A6: 合计 | B6: 4宗 | J6: 1807 | L6: 1507 | M6: 1507 | N6: 1507
A7: 1 | B7: 三和象岭建筑余泥渣土受纳场 | C7: 新增项目 | D7: 生态环保 | E7: 区城投公司 | F7: 区城投公司 | G7: 起：2019年5月7日 | H7: 惠阳区三和街道象岭河背山村小组（地块一） | I7: 建设内容：接纳余泥渣土 场地面积：14054平方米 | J7: 147 | K7: 接纳区内建筑余泥渣土 | L7: 147 | M7: =SUM(N7:O7) -> 147 | N7: 147
A8: 2 | B8: 永湖建筑余泥渣土受纳场 | C8: 新增项目 | D8: 生态环保 | E8: 区城投公司 | F8: 区城投公司 | G8: 起：2019年10月9日 | H8: 惠阳区永湖镇与惠城三栋镇交界处、惠南大道西侧 | I8: 建设内容：接纳余泥渣土 场地面积：32379平方米 | J8: 60 | K8: 接纳区内建筑余泥渣土 | L8: 60 | M8: 60 | N8: 60
A9: 3 | B9: 淡水门楼建筑余泥渣土受纳场 | C9: 新增项目 | D9: 生态环保 | E9: 区城投公司 | F9: 区城投公司 | G9: 起：2019年10月25日 | H9: 惠阳区淡水街道办洋纳村黄沙村 | I9: 建设内容：接纳余泥渣土 场地面积：14944平方米 | J9: 100 | K9: 接纳区内建筑余泥渣土 | L9: 100 | M9: 100 | N9: 100
A10: 4 | B10: 古屋水和横岭河道清淤工程 | C10: 新增项目 | D10: 生态环保 | E10: 区城投公司 | F10: 区城投公司 | G10: 2019.12.3至2020.1.25 | H10: 淡水、秋长、新圩 | I10: 河道底淤清运 | J10: 1500 | K10: 完成河道底淤清运 | L10: 1200 | M10: 1200 | N10: 1200

Sheet 区城投公司（续建）
A1: 区城投公司（续建）2020年度政府投资计划
A3: 序号 | B3: 项目名称 | C3: 建设阶段 | D3: 项目分类 | E3: 牵头责任单位 | F3: 建设单位 | G3: 项目建设起止年限 | H3: 建设地点 | I3: 项目建设内容及规模 | J3: 总投资 （万元） | K3: 2020年度工作计划 | L3: 2020年计划投资 （工程量） （万元） | M3: 2020年资金安排计划（万元） | P3: 备注
M4: 合计 | N4: 资金安排
N5: 区财政预算资金 | O5: 其它来源资金
A6: 合计 | B6: 2宗 | J6: 2600 | L6: 1124 | M6: 1124 | N6: 1124
A7: 1 | B7: 洋纳建筑余泥渣土受纳场 | C7: 延续项目 | D7: 生态环保 | E7: 区城投公司 | F7: 区城投公司 | G7: 起：2017年11月22日 | H7: 惠阳区淡水街道洋纳村黄沙地段 | I7: 建设内容：拦渣坝及箱涵附属工程；接纳余泥渣土 场地面积：63945平方米 | J7: 1800 | K7: 已完工，移交使用单位，待结算 | L7: 324 | M7: =SUM(N7:O7) -> 324 | N7: 324
A8: 2 | B8: 秋长山猪坑建筑余泥渣土受纳场 | C8: 延续项目 | D8: 生态环保 | E8: 区城投公司 | F8: 区城投公司 | G8: 起：2018年6月10日 | H8: 惠阳区秋长街道白石村白石洞山猪坑地段 | I8: 建设内容：接纳余泥渣土 场地面积：105653平方米 | J8: 800 | K8: 接纳区内建筑余泥渣土 | L8: 800 | M8: =SUM(N8:O8) -> 800 | N8: 800

Sheet 区机关事务管理局
A1: 区机关事务管理局2020年度政府投资计划
A3: 序号 | B3: 项目名称 | C3: 建设阶段 | D3: 项目分类 | E3: 牵头责任单位 | F3: 建设单位 | G3: 项目建设起止年限 | H3: 建设地点 | I3: 项目建设内容及规模 | J3: 总投资 （万元） | K3: 2020年度工作计划 | L3: 2020年计划投资 （工程量） （万元） | M3: 2020年资金安排计划（万元） | P3: 备注
M4: 合计 | N4: 资金安排
N5: 区财政预算资金 | O5: 其它来源资金
A6: 合计 | B6: 4宗 | J6: 1908 | L6: 1653 | M6: 1653 | N6: 1653
A7: 1 | B7: 区政府食堂大楼厨房配套功能升级改造 | C7: 新建 | D7: 公共服务 | E7: 区机关事务管理局 | F7: 区机关事务管理局 | G7: 2020 | H7: 区政府大院内 | I7: 厨房设备升级改造 | J7: 380 | K7: 厨房设备升级改造 | L7: 380 | M7: =SUM(N7:O7) -> 380 | N7: 380
A8: 2 | B8: 区政府食堂大楼用餐区改造工程 | C8: 新建 | D8: 公共服务 | E8: 区机关事务管理局 | F8: 区机关事务管理局 | G8: 2020 | H8: 区政府大院内 | I8: 用餐厅自助模式改造 | J8: 800 | K8: 用餐厅自助模式改造 | L8: 800 | M8: 800 | N8: 800
A9: 3 | B9: 区政府主楼设施设备更新 | C9: 新建 | D9: 公共服务 | E9: 区机关事务管理局 | F9: 区机关事务管理局 | G9: 2020-2021 | H9: 区政府大院内 | I9: 更换两台电梯，估算180万元。更换两台中央空调主机，估算280万元 | J9: 428 | K9: 2019年更换2台电梯，已支付34.2万元，余款63.4万元在2021年支付。2020年计划更换1台电梯，预计支付48万元。2020年至2021年更换2台空调主机总投资280万元，计划在2020年拆旧空调主机，支付60万元，2021年安装新的主机，支付220万元。 | L9: 173 | M9: 173 | N9: 173 | P9: 其中更换电梯年度资金98万元，更换中央空调主机，年度资金60万元。
A10: 4 | B10: 八楼会议室升级改造 | C10: 新建 | D10: 公共服务 | E10: 区机关事务管理局 | F10: 区机关事务管理局 | G10: 2020 | H10: 区政府大院内 | I10: 八楼会议室升级改造 | J10: 300 | K10: 改善会议室环境，升级音视频设备及电视电话会议系统，提升会议室的功能及效果。 | L10: 300 | M10: 300 | N10: 300

Sheet 区机关事务管理局（续建）
A1: 区机关事务管理局（续建）2020年度政府投资计划
A3: 序号 | B3: 项目名称 | C3: 建设阶段 | D3: 项目分类 | E3: 牵头责任单位 | F3: 建设单位 | G3: 项目建设起止年限 | H3: 建设地点 | I3: 项目建设内容及规模 | J3: 总投资 （万元） | K3: 2020年度工作计划 | L3: 2020年计划投资 （工程量） （万元） | M3: 2020年资金安排计划（万元） | P3: 备注
M4: 合计 | N4: 资金安排
N5: 区财政预算资金 | O5: 其它来源资金
A6: 合计 | B6: 2宗 | J6: 730 | L6: 725 | M6: 665 | N6: 665
A7: 1 | B7: 惠阳区行政服务中心供电线路双回路维修改造工程 | C7: 续建 | D7: 公共服务 | E7: 区机关事务管理局 | F7: 区机关事务管理局 | G7: 2018-2020 | H7: 惠阳区行政服务中心 | I7: 配电房维修改造、扩建，高压配电柜，变压器和母线，低压配电柜，电缆等供电设备更换 | J7: 350 | K7: 由于8月9日-10月8日三次在惠阳区公共资源交易中心办理招标手续，3次均流标，现拟采用工程预结算程序组织建设，计划2020年初完成。 | L7: 345 | M7: =SUM(N7:O7) -> 285 | N7: 285 | P7: 续建
A8: 2 | B8: 区政府食堂大楼加固工程 | C8: 续建 | D8: 公共服务 | E8: 区机关事务管理局 | F8: 区机关事务管理局 | G8: 2019-2020 | H8: 区政府大院内 | I8: 楼房结构加固 | J8: 380 | K8: 楼房结构加固 | L8: 380 | M8: =SUM(N8:O8) -> 380 | N8: 380

Sheet 区粮食储备公司
A1: 区粮食储备公司2020年度政府投资计划
A3: 序号 | B3: 项目名称 | C3: 建设阶段 | D3: 项目分类 | E3: 牵头责任单位 | F3: 建设单位 | G3: 项目建设起止年限 | H3: 建设地点 | I3: 项目建设内容及规模 | J3: 总投资 （万元） | K3: 2020年度工作计划 | L3: 2020年计划投资 （工程量） （万元） | M3: 2020年资金安排计划（万元） | P3: 备注
M4: 合计 | N4: 资金安排
N5: 区财政预算资金 | O5: 其它来源资金
A6: 合计 | B6: 1宗 | J6: 13394 | L6: 5500 | M6: 5500 | N6: 5500
A7: 1 | B7: 惠阳区粮食储备仓库 | C7: 新建 | D7: 社会事业 | E7: 区发改局 | F7: 惠阳区粮食储备公司 | G7: 2020-2022 | H7: 良井 | I7: 项目建设总投资约为13394万元，其中：生产设施建设费用为8706万元，其他辅助、管理及生活设施建设费用约为1607万元，室外工程投资1474万元，其他费用及预备费为1607万元。 | J7: 13394 | K7: 1、第一季度完成项目可行性研究报告编制、勘察及设计方案，做好立项工作； 2、第二季度招标建设，签订建设阶段合同； 3、第三季度开始施工； 4、第四季度继续施工。 | L7: 5500 | M7: 5500 | N7: 5500

Sheet 区委党校
A1: 区委党校2020年度政府投资计划
A3: 序号 | B3: 项目名称 | C3: 建设阶段 | D3: 项目分类 | E3: 牵头责任单位 | F3: 建设单位 | G3: 项目建设起止年限 | H3: 建设地点 | I3: 项目建设内容及规模 | J3: 总投资 （万元） | K3: 2020年度工作计划 | L3: 2020年计划投资 （工程量） （万元） | M3: 2020年资金安排计划（万元） | P3: 备注
M4: 合计 | N4: 资金安排
N5: 区财政预算资金 | O5: 其它来源资金
A6: 合计 | B6: 1宗 | J6: 29600 | L6: 600 | M6: 100 | N6: 100
A7: 1 | B7: 惠阳区委党校、区教师发展中心、区开放大学迁建项目 | C7: 新建 | D7: 社会事业 | E7: 区委党校 | F7: 区委党校 | G7: 2020-2022 | H7: 秋长街道岭湖地段 | I7: 区委党校、区教师发展中心、区开放大学一体规划、一体建设、一体进驻，建成后可同时满足800人食宿，1400人以上培训，55个考室，地面车位200个，地下车位500个，建筑面积58380㎡（其中地面建筑40880㎡，地下建筑17500㎡），建筑密度控制在30%以内，容积率0.97。 | J7: 29600 | K7: 组织项目编制可研性报告、项目设计、工程论证、用地清场等前期启动工作 | L7: 600 | M7: 100 | N7: 100

Sheet 区广播电视台
A1: 区广播电视台2020年度政府投资计划
A3: 序号 | B3: 项目名称 | C3: 建设阶段 | D3: 项目分类 | E3: 牵头责任单位 | F3: 建设单位 | G3: 项目建设起止年限 | H3: 建设地点 | I3: 项目建设内容及规模 | J3: 总投资 （万元） | K3: 2020年度工作计划 | L3: 2020年计划投资 （工程量） （万元） | M3: 2020年资金安排计划（万元） | P3: 备注
M4: 合计 | N4: 资金安排
N5: 区财政预算资金 | O5: 其它来源资金
A6: 合计 | B6: 1宗 | J6: 2610 | L6: 1260 | M6: 1260 | N6: 1260
A7: 1 | B7: 融媒体中心高清设备及技术平台建设 | C7: 新建 | D7: 社会事业 | E7: 区广播电视台 | F7: 区广播电视台 | G7: 2020—2021 | H7: 区广播电视台 | I7: 融媒体中心高清设备采购； 融媒体技术平台建设； 融媒体机房及办公用房装修。 | J7: 2610 | K7: 完成项目50% | L7: 1260 | M7: =SUM(N7:O7) -> 1260 | N7: 1260 | P7: 中共惠阳区委办公室 惠阳区人民政府办公室关于印发《惠阳区融媒体中心建设工作方案》的通知（惠区委办发电〔2019〕57号）

Sheet 区广播电视台 (续建)
A1: 区广播电视台 (续建)2020年度政府投资计划
A3: 序号 | B3: 项目名称 | C3: 建设阶段 | D3: 项目分类 | E3: 牵头责任单位 | F3: 建设单位 | G3: 项目建设起止年限 | H3: 建设地点 | I3: 项目建设内容及规模 | J3: 总投资 （万元） | K3: 2020年度工作计划 | L3: 2020年计划投资 （工程量） （万元） | M3: 2020年资金安排计划（万元） | P3: 备注
M4: 合计 | N4: 资金安排
N5: 区财政预算资金 | O5: 其它来源资金
A6: 合计 | B6: 1宗 | J6: 266 | L6: 240 | M6: 240 | N6: 240
A7: 1 | B7: 发射台危房重建 | C7: 续建 | D7: 社会事业 | E7: 区广播电视台 | F7: 区广播电视台 | G7: 2019—2021 | H7: 永湖镇乙湖山 | I7: 拆除旧房，原址建设一栋2层总建筑面积693平方米综合楼 | J7: 266 | K7: 完成建筑工程80% | L7: 240 | M7: =SUM(N7:O7) -> 240 | N7: 240 | P7: 2019年度政府投资项目

Sheet 区农业农村和水利局
A1: 区农业农村和水利局2020年度政府投资计划
A3: 序号 | B3: 项目名称 | C3: 建设阶段 | D3: 项目分类 | E3: 牵头责任单位 | F3: 建设单位 | G3: 项目建设起止年限 | H3: 建设地点 | I3: 项目建设内容及规模 | J3: 总投资 （万元） | K3: 2020年度工作计划 | L3: 2020年计划投资 （工程量） （万元） | M3: 2020年资金安排计划（万元） | P3: 备注
M4: 合计 | N4: 资金安排
N5: 区财政预算资金 | O5: 其它来源资金
A6: 合计 | B6: 1宗 | J6: 900 | L6: 850 | M6: 850 | N6: 850
A7: 1 | B7: 惠阳区厕所革命 | C7: 前期工作阶段 | D7: 农林水利 | E7: 农业农村和水利局 | F7: 牵头单位：惠阳区农业农村和水利局。叶挺纪念馆公厕责任单位：叶挺纪念园；示范村公厕建设责任单位：各镇街 | G7: 2020 | H7: 叶挺纪念馆及示范村 | I7: 叶挺纪念园公厕污水处理系统进行全面升级改造，承担纪念园主入口游客如厕量，每天承担18吨粪污处置能力；全区13个示范村中，共建4座无害化公厕 | J7: 900 | K7: 完成叶挺纪念园公厕改造建设和13个示范村中4个示范村的无害化公厕建设 | L7: 850 | M7: =SUM(N7:O7) -> 850 | N7: 850 | P7: 惠阳乡振组〔2019〕14 号-关于印发《惠阳区美丽乡村“六大行动”工作实施方案》等方案的通知

Sheet 区农业农村和水利局（续建）
A1: 区农业农村和水利局（续建）2020年度政府投资计划
A3: 序号 | B3: 项目名称 | C3: 建设阶段 | D3: 项目分类 | E3: 牵头责任单位 | F3: 建设单位 | G3: 项目建设起止年限 | H3: 建设地点 | I3: 项目建设内容及规模 | J3: 总投资 （万元） | K3: 2020年度工作计划 | L3: 2020年计划投资 （工程量） （万元） | M3: 2020年资金安排计划（万元） | P3: 备注
M4: 合计 | N4: 资金安排
N5: 区财政预算资金 | O5: 其它来源资金
A6: 合计 | B6: 4宗 | J6: 20928 | L6: 10500 | M6: 3473 | N6: 2823 | O6: 650
A7: 1 | B7: 惠阳区麻溪水治理工程 | C7: 在建 | D7: 农林水利 | E7: 惠阳区农业农村和水利局 | F7: 惠州市惠阳区水利水电工程建设管理中心 | G7: 2019-2020 | H7: 永湖镇 | I7: 河道治理长度为14.60km，其中清淤疏浚长度14.60km，护岸长度8.857km，重建苏茅坪旱桥排水箱涵1座。 | J7: 3541 | K7: 规划治理河道长度4.6Km，护岸长度7.5km，重建苏茅坪旱桥排水箱涵1座。 | L7: 2000 | M7: 2223 | N7: 1573 | P7: 2020年省级涉农资金安排沙田水治理项目650万元
A8: 2 | B8: 惠阳区沙田水治理工程 | C8: 在建 | D8: 农林水利 | E8: 惠阳区农业农村和水利局 | F8: 惠州市惠阳区水利水电工程建设管理中心 | G8: 2019-2020 | H8: 沙田镇、三和街道办 | I8: 河道治理长度为11.365km，其中清淤疏浚长度10.572km，护岸长度6.00km，拆除重建钢筋混凝土箱涵7座，改造加固石庙陂头1座，新建村民休闲广场（景观节点）2处、人行碧道2.13km。 | J8: 2787 | K8: 规划治理河道长度6.37Km，护岸长度4.00km，拆除重建钢筋混凝土箱涵7座，改造加固石庙陂头1座，新建村民休闲广场（景观节点）2处、人行碧道2.13km。 | L8: 1700 | O8: 650
A9: 3 | B9: 惠阳区饮用水源地智能监管平台建设项目 | C9: 前期工作阶段 | D9: 农林水利 | E9: 区农业农村水利局 | F9: 区农业农村水利局 | G9: 2019-2020 | H9: 鸡心石水库、大坑水库、沙田水库、碗窑水库 | I9: 在我区鸡心石水库、大坑水库、沙田水库、碗窑水库一级保护区范围建设饮用水源智能监管平台、视频监控系统和一级保护区空间识别区。 | J9: 300 | K9: 完成鸡心石水库、大坑水库、沙田水库、碗窑水库一级保护区范围建设饮用水源智能监管平台、视频监控系统和一级保护区空间识别区等建设任务。 | L9: 300 | M9: =SUM(N9:O9) -> 250 | N9: 250
A10: 4 | B10: 惠阳区美丽宜居乡村示范村建设 | C10: 在建 | D10: 农林水利 | E10: 区委农办 | F10: 各镇街 | G10: 2019-2020 | H10: 各示范村建设 | I10: 淡水街道古屋村、秋长街道周田村、三和街道全坑村、沙田镇东明村、新圩镇花果村、镇隆镇山顶村、永湖镇彩二村、良井镇官田村、大湖洋村、黄洞村、楼角村以及平潭镇新圩村等12个市级美丽宜居乡村示范村和永湖镇乌泥埔村1个创建区级美丽乡村示范村 | J10: 14300 | K10: 完成12个市级美丽乡村示范村建设和1个区级美丽乡村示范村建设 | L10: 6500 | M10: =SUM(N10:O10) -> 1000 | N10: 1000 | P10: 惠阳乡振组〔2019〕14 号-关于印发《惠阳区美丽乡村“六大行动”工作实施方案》等方案的通知

Sheet 区教育局
A1: 区教育局2020年度政府投资计划
A3: 序号 | B3: 项目名称 | C3: 建设阶段 | D3: 项目分类 | E3: 牵头责任单位 | F3: 建设单位 | G3: 项目建设起止年限 | H3: 建设地点 | I3: 项目建设内容及规模 | J3: 总投资 （万元） | K3: 2020年度工作计划 | L3: 2020年计划投资 （工程量） （万元） | M3: 2020年资金安排计划（万元） | P3: 备注
M4: 合计 | N4: 资金安排
N5: 区财政预算资金 | O5: 其它来源资金
A6: 合计 | B6: 18宗 | J6: 97530 | L6: 26580 | M6: 26530 | N6: 24337 | O6: 2193
A7: 1 | B7: 中小学校运动场建设（2020年新建项目） | C7: 启动建设 | D7: 社会事业 | E7: 惠阳区教育局 | F7: 各相关学校 | G7: 2020-2021 | H7: 各实施建设学校 | I7: 2019年实施项目：（淡水中心小学、秋长景新小学、镇隆塘角小学、新圩中学、永湖日新小学、良井山井小学、良井东新小学、平潭张新小学、职业技术学校等9所学校结算款340万在2020年支付；2020年实施项目：淡水新桥小学、沙田联和小学、新圩元洞小学、新圩东风小学、镇隆长龙小学、镇隆黄洞小学、永湖毅成小学、永湖以时小学、永湖民治小学、良井中学、良井时化小学、良井矮光小学、良井敦化小学、平潭田埔小学、三和连塘面小学、三和实验学校等16所学校31880平方米改造完成后面积为63800平方米，预计可支付1200万元，结算款610万在下一年支付。 | J7: 1810 | K7: 工程完工，计划2020年12月完成竣工验收。 | L7: 1540 | M7: =SUM(N7:O7) -> 1540 | N7: 1540
A8: 2 | B8: 中小学校安工程建设（2020新建项目） | C8: 启动建设 | D8: 社会事业 | E8: 惠阳区教育局 | F8: 各相关学校 | G8: 2020-2021 | H8: 各实施建设学校 | I8: 2019年实施项目：（淡水中心、淡水尧岗、沙田雅中小学、新圩元洞小学、新圩长布小学、镇隆中学、永湖日新小学、良井宏基小学、平潭张新小学、秋长岭湖小学、崇雅中学等11所学校结算款2775万元在2020年支付；2020年实施项目：淡水群力小学、淡水大埔小学、秋长中心小学、秋长善美小学、新圩中心小学、良井敦化小学、惠阳实验学校、镇隆中心小学、新圩中学等9学校27889平方米进行维修加固，今年完成工程前期工作，预计完成支付633万元，结算款2516万元在下一年支付。 | J8: 3408 | K8: 完成工程招标等前期工作 | L8: 3408 | M8: 3408 | N8: 3408
A9: 3 | B9: 良井宏基小学科技综合楼 | C9: 启动建设 | D9: 社会事业 | E9: 惠阳区教育局 | F9: 良井宏基小学 | G9: 2020-2021 | H9: 良井宏基小学 | I9: 建设一栋3层1700㎡科技综合楼 | J9: 400 | K9: 完成主体工程建设 | L9: 100 | M9: 100 | N9: 100 | P9: 计划投入400万元（其中区政府投入100万元良井政府投入100万元，捐资办学200万元）
A10: 4 | B10: 镇隆楼下小学新建教学楼 | C10: 新建 | D10: 社会事业 | E10: 惠阳区教育局 | F10: 镇隆楼下小学 | G10: 2020-2021 | H10: 镇隆楼下小学 | I10: 建设一栋4层1368㎡教学楼 | J10: 379 | K10: 完成主体工程建设 | L10: 379 | M10: 379 | N10: 379
A11: 5 | B11: 镇隆中学宿舍楼建设 | C11: 启动建设 | D11: 社会事业 | E11: 区教育局 | F11: 镇隆中学 | G11: 2020-2021 | H11: 镇隆中学 | I11: 学生宿舍楼第2、3层加建 | J11: 200 | K11: 完成2、3层学生宿舍楼主体建设 | L11: 200 | M11: 200 | O11: 200 | P11: 省级专项资金
A12: 6 | B12: 新圩约场小学教学楼建设 | C12: 启动建设 | D12: 社会事业 | E12: 区教育局 | F12: 新圩约场小学 | G12: 2020-2021 | H12: 新圩约场小学 | I12: 新建一栋5层2800㎡教学楼 | J12: 900 | K12: 完成主体工程建设 | L12: 570 | M12: 570 | N12: 570
A13: 7 | B13: 秋长维新小学教师周转房 | C13: 新建 | D13: 社会事业 | E13: 惠阳区教育局 | F13: 秋长维新小学 | G13: 2020-2021 | H13: 秋长维新小学 | I13: 新建一栋5层1000㎡教师周转房 | J13: 390 | K13: 签订施工合同，开工建设。 | L13: 390 | M13: 390 | N13: 390
A14: 8 | B14: 惠阳区义务教育寄宿制学校建设 | C14: 启动建设 | D14: 社会事业 | E14: 区教育局 | F14: 各相关学校 | G14: 2020 | H14: 新圩中学， 永湖中学， 沙田中学， 平潭中学。 | I14: 新圩中学，永湖中学，沙田中学，平潭中学4所学校的学生宿舍改造及购置生活设施。 | J14: 258 | K14: 完成工程建设及购置生活设施 | L14: 258 | M14: 258 | O14: 258 | P14: 省级专项资金
A15: 9 | B15: 惠阳高级中学迁建项目 | C15: 新增项目 | D15: 社会事业 | E15: 区教育局 | F15: 惠阳高级中学 | G15: 2020-2023 | I15: 新建一所惠阳高级中学 | J15: 70100 | K15: 完成选址，启动土地划拨程序。 | L15: 50
A16: 10 | B16: 惠阳一中实验学校回购项目 | C16: 回购 | D16: 社会事业 | E16: 区教育局 | F16: 区教育局 | G16: 2020 | H16: 惠阳一中实验学校 | I16: 惠阳一中实验学校回购 | J16: 15000 | K16: 完成回购 | L16: 15000 | M16: 15000 | N16: 15000
A17: 11 | B17: 淡水公办幼儿园建设 | C17: 收回 | D17: 社会事业 | E17: 区教育局 | F17: 淡水街道 | G17: 2020 | H17: 淡水三角禾场 | I17: 按规范化办园标准改建教学楼、活动场室，添置与幼儿园规模、场地相适应的各类设施设备，资金投入（建设投入：20万元；改建活动室及功能场室（含运动场）150万元，设施设备投入：120万元，其它60万元 | J17: 350 | K17: 完成建设 | L17: 350 | M17: =SUM(N17:O17) -> 350 | N17: 200 | O17: 150
A18: 12 | B18: 秋长公办幼儿园建设 | C18: 新建 | D18: 社会事业 | E18: 区教育局 | F18: 秋长街道 | G18: 2020 | H18: 迎宾大道融创小区 | I18: 按办班规模完善教学楼、活动场地、附属设施及设备器具购置。 | J18: 800 | K18: 完成建设 | L18: 800 | M18: 800 | N18: 400 | O18: 400 | P18: 区政府常务会议纪要(2019府纪常33)、惠阳教通﹝2019﹞436号关于印发《惠阳区公办中心幼儿园建设工作方案》的通知
A19: 13 | B19: 三和公办幼儿园建设 | C19: 租用 | D19: 社会事业 | E19: 区教育局 | F19: 三和街道 | G19: 2020 | H19: 三和国际花园 | I19: 按办班规模完善教学楼、活动场地、附属设施及设备器具购置 | J19: 400 | K19: 完成建设 | L19: 400 | M19: 400 | N19: 200 | O19: 200 | P19: 区政府常务会议纪要(2019府纪常33)、惠阳教通﹝2019﹞436号关于印发《惠阳区公办中心幼儿园建设工作方案》的通知
A20: 14 | B20: 沙田镇公办幼儿园建设 | C20: 租用 | D20: 社会事业 | E20: 区教育局 | F20: 沙田镇 | G20: 2020 | H20: 中心区镇政府旁边厂房 | I20: 按办班规模完善教学楼、活动场地、附属设施及设备器具购置 | J20: 500 | K20: 完成建设 | L20: 500 | M20: 500 | N20: 300 | O20: 200 | P20: 区政府常务会议纪要(2019府纪常33)、惠阳教通﹝2019﹞436号关于印发《惠阳区公办中心幼儿园建设工作方案》的通知
A21: 15 | B21: 新圩镇公办幼儿园建设 | C21: 新建 | D21: 社会事业 | E21: 区教育局 | F21: 新圩镇 | G21: 2020 | H21: 新圩碧桂园（元洞高布龙） | I21: 按规范园办学要求装修幼儿 园，计划招收9个教学班，配足 配齐师资队伍，完善教学功能场室，添置教学设备 | J21: 475 | K21: 完成建设 | L21: 475 | M21: 475 | N21: 250 | O21: 225 | P21: 区政府常务会议纪要(2019府纪常33)、惠阳教通﹝2019﹞436号关于印发《惠阳区公办中心幼儿园建设工作方案》的通知
A22: 16 | B22: 永湖镇公办幼儿园建设 | C22: 改建 | D22: 社会事业 | E22: 区教育局 | F22: 永湖镇 | G22: 2020 | H22: 永湖镇中学路2号 | I22: 按规范化办园标准改建教学楼、活动场室，添置与幼儿园规 模、场地相适应的各类设施设备,资金投入（不含收回费用。 其中建设投入：103.5万元；房屋加固费用150万元；房屋改建230万元，设施设备投入：共 177.32万元） | J22: 660 | K22: 完成建设 | L22: 660 | M22: 660 | N22: 500 | O22: 160 | P22: 区政府常务会议纪要(2019府纪常33)、惠阳教通﹝2019﹞436号关于印发《惠阳区公办中心幼儿园建设工作方案》的通知
A23: 17 | B23: 良井镇公办幼儿园建设 | C23: 收回扩建 | D23: 社会事业 | E23: 区教育局 | F23: 良井镇 | G23: 2020 | H23: 良井镇宏基小学附属幼儿园 | I23: 在园区西面新建一栋幼儿园综 合楼（占地300平方米，高4 层，建筑面积1200平方米）， 对原有教学大楼进行加固、装 修改造，完善宏基小学科技综 合楼（幼儿园使用部分），建 设消防水池及消防配套设施、 改造幼儿园围墙、绿化、园区 配套设施及活动场所，打造幼 儿园校园文化，装配供电专用 变压器及完善校园配电房。 | J23: 1000 | K23: 完成建设 | L23: 1000 | M23: 1000 | N23: 600 | O23: 400 | P23: 区政府常务会议纪要(2019府纪常33)、惠阳教通﹝2019﹞436号关于印发《惠阳区公办中心幼儿园建设工作方案》的通知
A24: 18 | B24: 平潭镇公办幼儿园建设 | C24: 新建 | D24: 社会事业 | E24: 区教育局 | F24: 平潭镇 | G24: 2020 | H24: 平潭镇红光村仙洞小学后面 | I24: 分两期实施，先按6个班的办班 规模新建教学楼、活动场地、附属设施及设备器具购置 | J24: 500 | K24: 完成建设 | L24: 500 | M24: 500 | N24: 500 | P24: 区政府常务会议纪要(2019府纪常33)、惠阳教通﹝2019﹞436号关于印发《惠阳区公办中心幼儿园建设工作方案》的通知

Sheet 区教育局 （续建）
A1: 区教育局 （续建）2020年度政府投资计划
A3: 序号 | B3: 项目名称 | C3: 建设阶段 | D3: 项目分类 | E3: 牵头责任单位 | F3: 建设单位 | G3: 项目建设起止年限 | H3: 建设地点 | I3: 项目建设内容及规模 | J3: 总投资 （万元） | K3: 2020年度工作计划 | L3: 2020年计划投资 （工程量） （万元） | M3: 2020年资金安排计划（万元） | P3: 备注
M4: 合计 | N4: 资金安排
N5: 区财政预算资金 | O5: 其它来源资金
A6: 合计 | B6: 8宗 | J6: 61865 | L6: 2877 | M6: 2877 | N6: 2877
A7: 1 | B7: 良井中学新建教师周转房 | C7: 续建 | D7: 社会事业 | E7: 惠阳区教育局 | F7: 良井中学 | G7: 2019-2020 | H7: 良井中学 | I7: 建设一栋5层900㎡的教师周转房 | J7: 290 | K7: 工程竣工验收，拨付结算款。 | L7: 147 | M7: =SUM(N7:O7) -> 147 | N7: 147
A8: 2 | B8: 永湖中心小学新建教师周转房钢结构楼梯及化粪池工程 | C8: 续建 | D8: 社会事业 | E8: 惠阳区教育局 | F8: 永湖中心小学 | G8: 2019-2020 | H8: 永湖中心小学 | I8: 建设一栋5层1688㎡的教师周转房 | J8: 370 | K8: 工程竣工验收，拨付结算款。 | L8: 70 | M8: 70 | N8: 70
A9: 3 | B9: 淡水新桥小学周转房建设 | C9: 续建 | D9: 社会事业 | E9: 区教育局 | F9: 淡水新桥小学 | G9: 2019-2020 | H9: 淡水新桥小学 | I9: 新建一栋4层1200㎡教师周转房 | J9: 500 | K9: 工程竣工验收，拨付结算款。 | L9: 200 | M9: 200 | N9: 200
A10: 4 | B10: 沙田中心小学教学楼建设 | C10: 续建 | D10: 社会事业 | E10: 区教育局 | F10: 沙田中心小学 | G10: 2019-2020 | H10: 沙田中心小学 | I10: 新建一栋5层3860㎡教学楼 | J10: 872 | K10: 工程竣工验收，拨付结算款。 | L10: 200 | M10: 200 | N10: 200
A11: 5 | B11: 秋长维新小学新建科学实验楼 | C11: 续建 | D11: 社会事业 | E11: 惠阳区教育局 | F11: 秋长维新小学 | G11: 2019-2020 | H11: 秋长维新小学 | I11: 新建科学实验楼一栋5层1929㎡ | J11: 340 | K11: 主体建设工程封顶 | L11: 180 | M11: 180 | N11: 180
A12: 6 | B12: 教师发展中心建设 | C12: 续建 | D12: 社会事业 | E12: 区教育局 | F12: 区教育局 | G12: 2019-2021 | H12: 区教育局 | I12: 改扩建总占地面积11000㎡，建筑面积13000㎡共4栋楼房及周边环境。 | J12: 2500 | K12: 改造现有实验楼和功能楼，进一步完善各类功能教室、办公场所、生活活动配套设施设备建设，建成覆盖联通全区学校的局域网、资源库、教师网络培训和研修平台，保障正常开展各种专项集中培训、网络学习研修、在线咨询交流等活动。 | L12: 1500 | M12: 1500 | N12: 1500
A13: 7 | B13: 惠阳区职业技术学校实训中心校门配套工程 | C13: 续建 | D13: 社会事业 | E13: 区教育局 | F13: 惠阳区职业技术学校 | G13: 2019 | H13: 惠阳区职业技术学校 | I13: 惠阳区职业技术学校实训中心项目（建设内容包括：1.工程结算超招标费270万元；2.预算漏项电梯工程70万元；3.绿色设计费20万元；4.附属工程设计和监理费20万元。共计380万元。） | J13: 2993 | K13: 惠阳区职业技术学校实训中心项目工程建设经费 | L13: 380 | M13: 380 | N13: 380
A14: 8 | B14: 叶挺中学扩建项目 | C14: 续建 | D14: 社会事业 | E14: 区教育局 | F14: 叶挺中学 | G14: 2019-2022 | H14: 叶挺中学 | I14: 扩建高中部 | J14: 54000 | K14: 1.预计工程达到开工，工程款600万元； 2、预计前期费用150万元。（为与资金安排相符，建议修改为开展前期工作，争取年内开工） | L14: 200 | M14: 200 | N14: 200

Sheet 区卫生健康局
A1: 区卫生健康局2020年度政府投资计划
A3: 序号 | B3: 项目名称 | C3: 建设阶段 | D3: 项目分类 | E3: 牵头责任单位 | F3: 建设单位 | G3: 项目建设起止年限 | H3: 建设地点 | I3: 项目建设内容及规模 | J3: 总投资 （万元） | K3: 2020年度工作计划 | L3: 2020年计划投资 （工程量） （万元） | M3: 2020年资金安排计划（万元） | P3: 备注
M4: 合计 | N4: 资金安排
N5: 区财政预算资金 | O5: 其它来源资金
A6: 合计 | B6: 3宗 | J6: 339000 | L6: 2000 | M6: 300 | N6: 300
A7: 1 | B7: 新建惠州市第六人民医院项目 | C7: 新建 | D7: 社会事业 | E7: 惠阳区卫生健康局 | F7: 惠州市第六人民医院 | G7: 2020-2028 | H7: 拟选址在惠阳南站新城片区 | I7: 项目总占地面积约12万平方米，总建筑面积34万平方米，拟设床位数2000张。项目总投资27.7亿元（其中2.7亿元已纳入南站新城PPP项目，剩余资金由区政府统筹安排解决）（不含医疗设备）。 一期项目：建筑面积约20.5万平方米（地上面积约16万平方米，地下面积约4.5万平方米），预计投资约17.7亿元（不含医疗设备）。 二期项目：建筑面积约12.7万平方米（地上面积9.4万平方米，地下面积约4.3万平方米），预计投资约10亿元（不含医疗设备）。 | J7: 277000 | K7: 完成选址、可研等相关前期工作 | L7: 100 | M7: =SUM(N7:O7) -> 100 | N7: 100 | P7: 预计总投资：27.7亿元（不含医疗设备）； 一期项目： 预计投资约17.7亿元（不含医疗设备）； 二期项目： 预计投资约10亿元（不含医疗设备）。
A8: 2 | B8: 新建惠阳区中医院项目 | C8: 新建 | D8: 社会事业 | E8: 惠阳区卫生健康局 | F8: 惠州市惠阳区中医院 | G8: 2020-2025 | H8: 拟选址在白云坑南片区 | I8: 占地面积2.2万平方米，建筑面积约6.3万平方米（地上面积4.3万平方米，地下面积2万平方米），建设周期为2020-2025年。预计投资约5.2亿元（不含医疗设备）。 | J8: 52000 | K8: 完成选址、可研等相关前期工作 | L8: 100 | M8: 100 | N8: 100 | P8: 5.2亿元（不含医疗设备）
A9: 3 | B9: 区妇幼保健院迁建工程相邻山坡平整项目 | C9: 新建 | D9: 社会事业 | E9: 惠阳区卫生健康局 | F9: 惠阳区卫生健康局 | G9: 2020-2021 | I9: 预计总体开挖。量约52万立方米。 | J9: 10000 | K9: 开展初步勘探/可研等前期手续。 | L9: 1800 | M9: 100 | N9: 100

Sheet 区卫生健康局 （续建）
A1: 区卫生健康局 （续建）2020年度政府投资计划
A3: 序号 | B3: 项目名称 | C3: 建设阶段 | D3: 项目分类 | E3: 牵头责任单位 | F3: 建设单位 | G3: 项目建设起止年限 | H3: 建设地点 | I3: 项目建设内容及规模 | J3: 总投资 （万元） | K3: 2020年度工作计划 | L3: 2020年计划投资 （工程量） （万元） | M3: 2020年资金安排计划（万元） | P3: 备注
M4: 合计 | N4: 资金安排
N5: 区财政预算资金 | O5: 其它来源资金
A6: 合计 | B6: 6宗 | J6: 81325 | L6: 7253 | M6: 7253 | N6: 1337 | O6: 5916
A7: 1 | B7: 惠阳区第二人民医院新建项目 | C7: 续建 | D7: 社会事业 | E7: 惠阳区卫生健康局 | F7: 惠阳区卫生健康局 | G7: 2019-2023 | H7: 新圩镇东风梅龙新区 | I7: 按照高标准谋划分一、二期建设，项目总占地面积约5.112万平方米，总建筑面积约8万平方米（其中地上建筑面积6万平方米，地下建筑面积2万平方米），拟设床位数500张，项目总投资估算约7亿元（不含医疗设备费用），其中一期项目占地面积3.3万平方米，建筑面积4.2万平方米，估算投资约4.8亿元（土建工程费用3亿元，医疗设备费用1.8亿元）。 | J7: 70000 | K7: 完成可研、环评等相关前期工作 | L7: 350 | M7: =SUM(N7:O7) -> 350 | N7: 350 | P7: 项目总投资估算约7亿元； 其中一期估算估算投资约4.8亿元（土建工程费用3亿元，医疗设备费用1.8亿元）。
A8: 2 | B8: 秋长社区卫生服务中心新建项目 | C8: 续建 | D8: 社会事业 | E8: 秋长街道办事处 | F8: 秋长社区卫生服务中心 | G8: 2018-2020 | H8: 秋长街道办人民二路41号 | I8: 建筑占地面积960平方米，（主体工程）框架结构六层，总建筑面积为6558平方米 | J8: 2799 | K8: 争取年底前完成前期手续并动工建设。 | L8: 300 | M8: 300 | N8: 100 | O8: 200
A9: 3 | B9: 新圩镇中心卫生院约场门诊部综合楼 | C9: 续建 | D9: 社会事业 | E9: 新圩镇政府 | F9: 新圩镇中心卫生院 | G9: 2019-2020 | H9: 新圩镇约场村 | I9: 项目占地面积450平方米，共6层，总建筑面积3180平方米。 | J9: 982 | K9: 完成主体工程建设 | L9: 732 | M9: 732 | O9: 732
A10: 4 | B10: 三和街道社区卫生服务中心 | C10: 续建 | D10: 社会事业 | E10: 三和街道办事处 | F10: 三和街道办 | G10: 2019-2021 | H10: 三和街道莲塘面村地段 | I10: 项目占地面积2913平方米，共6层，总建筑面积约7198.76平方米。 | J10: 2853 | K10: 完成主体工程建设 | L10: 2137 | M10: 2137 | N10: 387 | O10: 1750
A11: 5 | B11: 沙田镇中心卫生院改扩建项目 | C11: 续建 | D11: 社会事业 | E11: 沙田镇人民政府 | F11: 沙田镇中心卫生院 | G11: 2018-2020 | H11: 惠阳区沙田镇创业街三路10号 | I11: 项目占地面积3722平方米，总建筑面积8353.60平方米。 | J11: 3868 | K11: 完成主体工程建设 | L11: 3179 | M11: 3179 | N11: 500 | O11: 2679
A12: 6 | B12: 惠州市惠阳区永湖镇中心卫生院公共卫生综合楼 | C12: 续建 | D12: 社会事业 | E12: 永湖镇人民政府 | F12: 永湖镇中心卫生院 | G12: 2019-2020 | H12: 永湖镇政教街19号 | I12: 项目占地面积610平方米，共5层，总建筑面积3050平方米。 | J12: 823 | K12: 竣工验收 | L12: 555 | M12: 555 | O12: 555

Sheet 秋长街道办（续建）
A1: 秋长街道办（续建）2020年度政府投资计划
A3: 序号 | B3: 项目名称 | C3: 建设阶段 | D3: 项目分类 | E3: 牵头责任单位 | F3: 建设单位 | G3: 项目建设起止年限 | H3: 建设地点 | I3: 项目建设内容及规模 | J3: 总投资 （万元） | K3: 2020年度工作计划 | L3: 2020年计划投资 （工程量） （万元） | M3: 2020年资金安排计划（万元） | P3: 备注
M4: 合计 | N4: 资金安排
N5: 区财政预算资金 | O5: 其它来源资金
A6: 合计 | B6: 1宗 | J6: 1546 | L6: 746 | M6: 746 | N6: 746
A7: 1 | B7: 110千伏秋茶线迁移工程 | C7: 续建 | D7: 社会事业 | E7: 秋长街道 | F7: 秋长街道 | G7: 2018－2020 | H7: 秋长 | I7: 拆除线路长度共计约1.7km。改造秋茶线N14-N20段线路，新建线路长度为2.1km;改造田茶线N40-N41段线路，新建线路长度为0.15km。 | J7: 1546 | K7: 拆除线路长度共计约1.7km。改造秋茶线N14-N20段线路，新建线路长度为2.1km;改造田茶线N40-N41段线路，新建线路长度为0.15km。 | L7: 746 | M7: 746 | N7: 746

Sheet 区供电公司（续建）
A1: 区供电公司（续建）2020年度政府投资计划
A3: 序号 | B3: 项目名称 | C3: 建设阶段 | D3: 项目分类 | E3: 牵头责任单位 | F3: 建设单位 | G3: 项目建设起止年限 | H3: 建设地点 | I3: 项目建设内容及规模 | J3: 总投资 （万元） | K3: 2020年度工作计划 | L3: 2020年计划投资 （工程量） （万元） | M3: 2020年资金安排计划（万元） | P3: 备注
M4: 合计 | N4: 资金安排
N5: 区财政预算资金 | O5: 其它来源资金
A6: 合计 | B6: 1宗 | J6: 10700 | L6: 2000 | M6: 2000 | N6: 2000
A7: 1 | B7: 2019年惠阳区重点建设项目电力设施迁改工程 | C7: 续建 | D7: 社会事业 | E7: 区供电局 | F7: 区供电局 | G7: 2020-2021 | H7: 惠阳区 | I7: 一、石桥PPP项目-爱民西路迁改工程 二、石桥PPP项目-南湖路（爱民西路至龙海一路）迁改工程 三、石桥PPP项目-仲恺路（坪山河至人民路）迁改工程 四、滨河北路北段及河道边坡支护工程迁改工程 五、南站新城PPP项目-新桥一路迁改工程 六、南站新城PPP项目-叶挺东路（星河东路-内环东路）迁改工程 七、南站新城PPP项目-经七路（白云路-站前路）迁改工程 八、南站新城PPP项目-古屋河河道整治迁改工程 九、南站新城PPP项目-古屋河支流整治迁改工程 十、南站新城PPP项目-经六路（白云路-纬三路）迁改工程 十一、白云南PPP项目-内环西路南段（白云路至龙海一路）工程迁改工程 十二、白云新城PPP项目-云新大道（内环路-外环路）迁改工程 十三、白云新城PPP项目-高尔夫路迁改工程 十四、白云新城PPP项目-坪山河迁改工程 十五、白云新城PPP项目-保利路迁改工程 十六、白云新城PPP项目-惠坪路迁改工程 十七、南站新城PPP项目-内环东路（深汕高速-星河六路段）迁改工程 十八、内环西路北段（秋宝路—北环路段）迁改工程 十九、规划路（永兴路至尧岗路）迁改工程 二十、秋长亚来路迁改工程 二十一、金秋大道南段迁改工程 二十二、大埔南路（中山路—爱民东路）迁改工程 二十三、新九路迁改工程 二十四、三和北大PPP项目-秋洋路迁改工程 二十五、三和北大PPP项目-御和南路（联兴路-秋洋路）迁改工程 二十六、三和北大PPP项目-将军东路（惠南大道-御和南路）迁改工程 二十七、上刘路（北环路至荔兴路）迁改工程 二十八、24米规划路(永兴路至河背路)工程迁改工程 二十九、学府路（河背街至荔兴路）迁改工程 三十、白云大道（省道S356淡水秋长段）一期改造工程迁改工程 三十一、将军东路（X225线黄竹沥至周田村）建设项目工程迁改工程 三十二、Y697（镇高线）公路改造工程迁改工程 | J7: 10700 | K7: 一、 秋长亚来路供电迁改工程 二、 金秋大道南段供电迁改工程 三、 大埔南路（中山路—爱民东路）供电迁改工程 四、 爱民西路供电迁改工程 五、 高尔夫路供电迁改工程 六、 新桥一路供电迁改工程 七、 秋洋路供电迁改工程 八、 御和南路（联兴路-秋洋路）供电迁改工程 九、 将军东路（惠南大道-御和南路）供电迁改工程 十、 南湖路（爱民西路至龙海一路）供电迁改工程 十一、 仲恺路（坪山河至人民路）供电迁改工程 十二、 滨河北路北段及河道边坡支护工程供电迁改工程 十三、 内环西路北段（秋宝路—北环路段）供电迁改工程 十四、 规划路（永兴路至尧岗路）供电迁改工程 十五、 经七路（白云路-站前路）供电迁改工程 十六、 内环西路南段（白云路至龙海一路）供电迁改工程 十七、 叶挺东路（星河东路-内环东路）供电迁改工程 十八、 白云大道（省道S356淡水秋长段）一期改造工程供电迁改工程 三十、白云大道（省道S356淡水秋长段）一期改造工程迁改工程 三十一、将军东路（X225线黄竹沥至周田村）建设项目工程迁改工程 三十二、Y697（镇高线）公路改造工程迁改工程 | L7: 2000 | M7: 2000 | N7: 2000

Sheet 区供销社（续建）
A1: 区供销社（续建）2020年度政府投资计划
A3: 序号 | B3: 项目名称 | C3: 建设阶段 | D3: 项目分类 | E3: 牵头责任单位 | F3: 建设单位 | G3: 项目建设起止年限 | H3: 建设地点 | I3: 项目建设内容及规模 | J3: 总投资 （万元） | K3: 2020年度工作计划 | L3: 2020年计划投资 （工程量） （万元） | M3: 2020年资金安排计划（万元） | P3: 备注
M4: 合计 | N4: 资金安排
N5: 区财政预算资金 | O5: 其它来源资金
A6: 合计 | B6: 1宗 | J6: 310 | L6: 100 | M6: 100 | N6: 100
A7: 1 | B7: 惠阳区永湖供销社虎爪服务平台 | C7: 主体施工 | D7: 公共服务 | E7: 惠阳区永湖供销社 | F7: 惠阳区永湖供销社 | G7: 2019-2020 | H7: 惠阳区永湖镇虎爪村 | I7: 设计建设四层楼房，建筑占地面积256.2平方米，总建筑面积1067.97平方米，项目总投资310万元。（注：项目开始于2017年，前期已投入部分启动资金，项目全部资金来源于区财政每年计划安排的供销合作发展资金100万元，预计需继续使用2019、2020、2021年三年发展资金投入） | J7: 310 | K7: 2019年下半年进行主体施工，2020年上半年前完成。 | L7: 100 | M7: =SUM(N7:O7) -> 100 | N7: 100 | P7: 供销合作发展资金由区财政安排给供销社，用于综合改革，可用于供销社建设服务平台、基层改造、投入为农服务等。

Sheet 区住建局（污水处理设施项目，续建）
A1: 区住建局（污水处理设施项目，续建）2020年度政府投资计划
A3: 序号 | B3: 项目名称 | C3: 建设阶段 | D3: 项目分类 | E3: 牵头责任单位 | F3: 建设单位 | G3: 项目建设起止年限 | H3: 建设地点 | I3: 项目建设内容及规模 | J3: 总投资 （万元） | K3: 2020年度工作计划 | L3: 2020年计划投资 （工程量） （万元） | M3: 2020年资金安排计划（万元） | P3: 备注
M4: 合计 | N4: 资金安排
N5: 区财政预算资金 | O5: 其它来源资金
A6: 合计 | B6: 9宗 | J6: 105462 | L6: 0 | M6: 13642 | N6: 13642
A7: 1 | B7: 秋长街道内环西路及经四路污水管网建设工程 | C7: 已完工 | D7: 生态环保 | E7: 秋长街道办 | F7: 秋长街道办 | G7: 2019年 | H7: 秋长街道办 | I7: 完成7.258公里管网建设 | J7: 9333 | K7: 完工结算 | M7: =SUM(N7:O7) -> 746 | N7: 746 | P7: 已补助6100万元（惠财工[2019]72号及惠阳府办函[2019]47号）
A8: 2 | B8: 惠阳区沙田镇污水处理厂配套管网东部工业区段工程 | C8: 已完工 | D8: 生态环保 | E8: 沙田镇 | F8: 沙田镇 | G8: 2019年 | H8: 沙田镇 | I8: 完成4.8公里管网建设 | J8: 3171 | K8: 完工结算 | M8: 2527 | N8: 2527 | P8: 已补助2178.06万元（财352）
A9: 3 | B9: 惠阳区沙田镇行政中心片区、东明片区、东澳片区污水收集支管网整治工程项目 | C9: 已完工 | D9: 生态环保 | E9: 沙田镇 | F9: 沙田镇 | G9: 2019年 | H9: 沙田镇 | I9: 完成9.709公里管网建设 | J9: 3341 | K9: 完工结算 | M9: 0 | P9: 已补助2332.88万元（财353）
A10: 4 | B10: 良井镇生活污水处理厂配套污水管网 | C10: 已完工 | D10: 生态环保 | E10: 良井镇 | F10: 良井镇 | G10: 2019年 | H10: 良井镇 | I10: 完成4公里管网建设 | J10: 650 | K10: 完工结算 | M10: 375 | N10: 375 | P10: 惠财工[2019]24号及财558
A11: 5 | B11: 惠阳区平潭镇污水管网一、二期建设工程 | C11: 已完工 | D11: 生态环保 | E11: 平潭镇 | F11: 平潭镇 | G11: 2019年 | H11: 平潭镇 | I11: 完成17.1公里管网建设 | J11: 10000 | K11: 完工结算 | M11: 2511 | N11: 2511
A12: 6 | B12: 惠阳区新圩镇黄沙河主干管和次干管建设工程项目 | C12: 黄沙河还剩0.04公里管网未完成 | D12: 生态环保 | E12: 新圩镇 | F12: 新圩镇 | G12: 2019年 | H12: 新圩镇 | I12: 完成35.62公里管网建设 | J12: 75090 | K12: 完工结算 | M12: 5196 | N12: 5196 | P12: 已补助31900万元（新圩镇横岭水及“三条河”管网建设工程立项金额共103511.72万元）
A13: 7 | B13: 惠阳区新圩镇横岭水主干管和次干管建设工程项目 | D13: 生态环保 | K13: 完工结算 | M13: 0
A14: 8 | B14: 惠阳区新圩镇屯梓河主干管和次干管建设工程项目 | D14: 生态环保 | K14: 完工结算 | M14: 0
A15: 9 | B15: 新圩镇2019年新增管网建设工程 | C15: 已完成12公里建设 | D15: 生态环保 | E15: 新圩镇 | F15: 新圩镇 | G15: 2019年 | H15: 新圩镇 | I15: 完成12公里管网建设 | J15: 3877 | K15: 完工结算 | M15: 2287 | N15: 2287

Sheet 惠州市生态环境局惠阳分局
A1: 惠州市生态环境局惠阳分局2020年度政府投资计划
A3: 序号 | B3: 项目名称 | C3: 建设阶段 | D3: 项目分类 | E3: 牵头责任单位 | F3: 建设单位 | G3: 项目建设起止年限 | H3: 建设地点 | I3: 项目建设内容及规模 | J3: 总投资 （万元） | K3: 2020年度工作计划 | L3: 2020年计划投资 （工程量） （万元） | M3: 2020年资金安排计划（万元） | P3: 备注
M4: 合计 | N4: 资金安排
N5: 区财政预算资金 | O5: 其它来源资金
A6: 合计 | B6: 1宗 | J6: 681 | L6: 272 | M6: 272 | N6: 272
A7: 1 | B7: 饮用水水源地水质监测自动站建设(4个) | C7: 前期准备 | D7: 生态环保 | E7: 惠州市生态环境局惠阳分局 | F7: 惠州市生态环境局惠阳分局 | G7: 2020年 | H7: 沙田水库、鸡心石水库、大坑水库、碗窑水库饮用水水源地取水口附近 | I7: 水质监测自动站监测项目：常规五参数、高锰酸盐指数、氨氮、总磷、总氮，叶绿素a、挥发性有机物、藻类密度、重金属等 | J7: 681 | K7: 站房建设（含基础、站房、装修、用电、排水等） | L7: 272 | M7: =SUM(N7:O7) -> 272 | N7: 272

Sheet 惠州市生态环境局惠阳分局 （续建）
A1: 惠州市生态环境局惠阳分局 （续建）2020年度政府投资计划
A3: 序号 | B3: 项目名称 | C3: 建设阶段 | D3: 项目分类 | E3: 牵头责任单位 | F3: 建设单位 | G3: 项目建设起止年限 | H3: 建设地点 | I3: 项目建设内容及规模 | J3: 总投资 （万元） | K3: 2020年度工作计划 | L3: 2020年计划投资 （工程量） （万元） | M3: 2020年资金安排计划（万元） | P3: 备注
M4: 合计 | N4: 资金安排
N5: 区财政预算资金 | O5: 其它来源资金
A6: 合计 | B6: 3宗 | J6: 3220 | L6: 823 | M6: 823 | N6: 823
A7: 1 | B7: 淡水河、潼湖流域13条支流交界断面水质自动站建设 | C7: 完成开标，目前建设中 | D7: 生态环保 | E7: 惠州市生态环境局惠阳分局 | F7: 惠州市生态环境局惠阳分局 | G7: 2019年－2020年 | H7: 金惠大道桥下、惠阳区迎宾大道东附近、惠阳区河路附近等13条支流附近 | I7: 在淡水河、漳湖流域内横岒水等13条支流和交界处各建设1个水质自动监测站（共13个），分析COD、氨氮等9参数的简易式自动站，及时关注水质糖化情况。 | J7: 1105 | K7: 仪器设备安装、调试和自动站验收 | L7: 157 | M7: =SUM(N7:O7) -> 157 | N7: 157 | P7: 三年建设规划
A8: 2 | B8: 废水废气型工业企业过程在线监控 | C8: 已建成，正组织验收中 | D8: 生态环保 | E8: 惠州市生态环境局惠阳分局 | F8: 惠州市生态环境局惠阳分局 | G8: 2019年-2023年 | H8: 重点涉水企业及8家试点涉气企业 | I8: 根据区政府统一安排，我区首批在87家重点企业安装过程在线监控系统84台。 | J8: 750 | K8: 维护设施正常运行 | L8: 120 | M8: 120 | N8: 120 | P8: 续建
A9: 3 | B9: 镇（街）空气自动站建设 | C9: 前期工作已完成，目前在优化选点，预计2020年建成 | D9: 生态环保 | E9: 惠州市生态环境局惠阳分局 | F9: 惠州市生态环境局惠阳分局 | G9: 2019年-2020年 | H9: 三和、沙田、新圩、镇隆、永湖、平潭和良井 | I9: 根据惠州市蓝天保卫战，逐步推进镇（街）空气自动站建设，2020年6月底前，建成三和、沙田、新圩、镇隆、永湖等5个镇（街）空气自动站，同时启动良井镇和平潭镇空气自动站建设。 | J9: 1365 | K9: 站房建设（含基础、站房、装修、用电等），仪器采购 | L9: 546 | M9: 546 | N9: 546 | P9: 三年建设规划

Sheet 区自然资源局
A1: 区自然资源局2020年度政府投资计划
A3: 序号 | B3: 项目名称 | C3: 建设阶段 | D3: 项目分类 | E3: 牵头责任单位 | F3: 建设单位 | G3: 项目建设起止年限 | H3: 建设地点 | I3: 项目建设内容及规模 | J3: 总投资 （万元） | K3: 2020年度工作计划 | L3: 2020年计划投资 （工程量） （万元） | M3: 2020年资金安排计划（万元） | P3: 备注
M4: 合计 | N4: 资金安排
N5: 区财政预算资金 | O5: 其它来源资金
A6: 合计 | B6: 5宗 | J6: 4003 | L6: 4003 | M6: 1133 | N6: 583 | O6: 550
A7: 1 | B7: 惠州市惠阳森林生态综合示范园建设项目 | C7: 新建 | D7: 农林水利 | E7: 惠阳区自然资源局 | F7: 惠阳区自然资源局 | G7: 2020-2021年 | H7: 镇隆镇井龙村沙堆 | I7: 建设森林生态综合示范园4828.5亩，重点建设林下经济示范园区2020.5亩、森林康养示范园区1783.5亩和自然教育园区1024.5亩。 | J7: 2000 | K7: 完成项目前期准备工作 | L7: 2000 | M7: 40 | N7: 40 | P7: 安排项目前期费用40万元
A8: 2 | B8: 惠阳区2020年多彩森林建设工程 | C8: 续建 | D8: 农林水利 | E8: 惠阳区自然资源局 | F8: 惠阳区自然资源局 | G8: 2020年 | H8: 秋长街道周田村 | I8: 叶挺森林公园多彩森林营造，生态路径建设，生态休息平台建设 | J8: 800 | K8: 完成项目建设 | L8: 800 | M8: 250 | N8: 250 | P8: 2019年已安排550万元资金，本年度拟安排250万元
A9: 3 | B9: 惠阳区2020年省级森林碳汇造林项目 | C9: 新建 | D9: 农林水利 | E9: 惠阳区自然资源局 | F9: 惠阳区自然资源局 | G9: 2020年 | H9: 惠阳区各乡镇 | I9: 森林碳汇林造林面积3430亩 | J9: 640 | K9: 完成项目建设 | L9: 640 | M9: 280 | N9: 80 | O9: 200 | P9: 省涉农资金200万元
A10: 4 | B10: 惠阳区2020年省级森林碳汇林抚育工程 | C10: 新建 | D10: 农林水利 | E10: 惠阳区自然资源局 | F10: 惠阳区自然资源局 | G10: 2020年 | H10: 惠阳区各乡镇 | I10: 森林抚育面积10769亩 | J10: 263 | K10: 完成项目建设 | L10: 263 | M10: 263 | N10: 113 | O10: 150 | P10: 省涉农资金150万元
A11: 5 | B11: 惠阳区2020年“美丽乡村·绿满家园”建设工程 | C11: 新建 | D11: 农林水利 | E11: 惠阳区自然资源局 | F11: 惠阳区自然资源局 | G11: 2020年 | H11: 惠阳区各乡镇 | I11: 建设20个森林村庄 | J11: 300 | K11: 完成项目建设 | L11: 300 | M11: 300 | N11: 100 | O11: 200 | P11: 市级补助资金200万元

Sheet 区自然资源局 （续建）
A1: 区自然资源局 （续建）2020年度政府投资计划
A3: 序号 | B3: 项目名称 | C3: 建设阶段 | D3: 项目分类 | E3: 牵头责任单位 | F3: 建设单位 | G3: 项目建设起止年限 | H3: 建设地点 | I3: 项目建设内容及规模 | J3: 总投资 （万元） | K3: 2020年度工作计划 | L3: 2020年计划投资 （工程量） （万元） | M3: 2020年资金安排计划（万元） | P3: 备注
M4: 合计 | N4: 资金安排
N5: 区财政预算资金 | O5: 其它来源资金
A6: 合计 | B6: 1宗 | J6: 315 | L6: 165 | M6: 78 | N6: 78
A7: 1 | B7: 淡水光耀城东侧惠南大道滑坡地质灾害治理工程 | C7: 续建 | D7: 农林水利 | E7: 惠阳区自然资源局 | F7: 惠阳区自然资源局 | G7: 2020年 | H7: 惠阳区淡水街道 | I7: 采用混凝土挡土墙+格构梁+锚杆，对该滑坡地质灾害实施永久性治理，治理滑坡宽24m，长约22m，高约17m，滑坡面积约400㎡，滑坡体积约1000m³。 | J7: 315 | K7: 完成项目建设 | L7: 165 | M7: =SUM(N7:O7) -> 78 | N7: 78 | P7: 三年建设规划

Sheet 惠阳供水有限公司
A1: 惠阳供水有限公司2020年度政府投资计划
A3: 序号 | B3: 项目名称 | C3: 建设阶段 | D3: 项目分类 | E3: 牵头责任单位 | F3: 建设单位 | G3: 项目建设起止年限 | H3: 建设地点 | I3: 项目建设内容及规模 | J3: 总投资 （万元） | K3: 2020年度工作计划 | L3: 2020年计划投资 （工程量） （万元） | M3: 2020年资金安排计划（万元） | P3: 备注
M4: 合计 | N4: 资金安排
N5: 区财政预算资金 | O5: 其它来源资金
A6: 合计 | B6: 3宗 | J6: 5774 | L6: 3774 | M6: 300 | N6: 300
A7: 1 | B7: 淡水老城区历史文化街区市政消火栓工程 | C7: 前期阶段 | D7: 市政基础设施 | E7: 惠州市惠阳供水有限公司 | F7: 惠州市惠阳供水有限公司 | G7: 2020年 | H7: 淡水老城区历史文化街区 | I7: 安装市政消火栓89个，铺设DN100～DN400消防供水管道总长约3.3公里。 | J7: 376 | K7: 完成建设 | L7: 376 | M7: 100 | N7: 100 | P7: 惠州市淡水老城区历史文化街区消防专项规划（2016-2030）、惠阳府函[2017]50号、惠阳规建函[2017]369号、惠阳自然资函[2019]1257号
A8: 2 | B8: 新桥东片区市政消火栓工程 | C8: 前期阶段 | D8: 市政基础设施 | E8: 惠州市惠阳供水有限公司 | F8: 惠州市惠阳供水有限公司 | G8: 2020年 | H8: 淡水新桥东片区 | I8: 安装市政消火栓30个，铺设DN100～DN150消防供水管道总长约3.4公里。新建加压泵站，泵站设计流量为30L/s，扬程55m。 | J8: 398 | K8: 完成建设 | L8: 398 | M8: 100 | N8: 100 | P8: 《关于淡水老城区历史文化街区和新桥东片区市政消防栓工程方案的回复意见（淡水街道办）》、《惠阳自然资函[2019]1257号》。
A9: 3 | B9: 秋南片区市政消火栓建设 | C9: 前期阶段 | D9: 市政基础设施 | E9: 惠州市惠阳供水有限公司 | F9: 惠州市惠阳供水有限公司 | G9: 2020-2021 | H9: 秋长秋南片区 | I9: 安装市政消火栓420个，铺设DN100～DN400消防供水管道总长约50公里。 | J9: 5000 | K9: 安装市政消火栓250个，铺设DN100～DN400消防供水管道总长约30公里。 | L9: 3000 | M9: 100 | N9: 100 | P9: 惠阳府纪〔2019〕169号、《惠阳区秋南片区火灾隐患挂牌督办专项整治工作方案》

Sheet 惠阳供水有限公司（续建）
A1: 惠阳供水有限公司（续建）2020年度政府投资计划
A3: 序号 | B3: 项目名称 | C3: 建设阶段 | D3: 项目分类 | E3: 牵头责任单位 | F3: 建设单位 | G3: 项目建设起止年限 | H3: 建设地点 | I3: 项目建设内容及规模 | J3: 总投资 （万元） | K3: 2020年度工作计划 | L3: 2020年计划投资 （工程量） （万元） | M3: 2020年资金安排计划（万元） | P3: 备注
M4: 合计 | N4: 资金安排
N5: 区财政预算资金 | O5: 其它来源资金
A6: 合计 | B6: 3宗 | J6: 3093 | L6: 650 | M6: 1500 | N6: 1500
A7: 1 | B7: 2019年配合内街小巷整治供水管道项目 | C7: 已完工，处于竣工验收阶段 | D7: 市政基础设施 | E7: 区公用事业管理中心 | F7: 惠州市惠阳供水有限公司 | G7: 2019 | H7: 惠阳 | I7: 配合区公用事业管理中心对内街小巷进行整治 | J7: 1500 | K7: 完成建设 | L7: 0 | M7: 550 | N7: 550
A8: 2 | B8: 2020年配合内街小巷整治供水管道项目 | C8: 前期阶段 | D8: 市政基础设施 | E8: 区公用事业管理中心 | F8: 惠州市惠阳供水有限公司 | G8: 2020年 | H8: 惠阳 | I8: 配合区公用事业管理中心对内街小巷进行整治 | J8: 650 | K8: 完成建设 | L8: 650 | M8: 650 | N8: 650
A9: 3 | B9: 秋长街道角塘、大松山、雷公塘片区设置市政消防栓项目工程 | C9: 已完工，处于竣工验收阶段 | D9: 市政基础设施 | E9: 惠州市惠阳供水有限公司 | F9: 惠州市惠阳供水有限公司 | G9: 2018-2019 | H9: 秋长街道 | I9: 安装市政消火栓102套，铺设DN100～DN300消防供水管道总长约8.4公里。 | J9: 943 | K9: 完成建设 | L9: 0 | M9: 300 | N9: 300 | P9: 工程结算款项

Sheet 区公用事业管理中心
A1: 区公用事业管理中心2020年度政府投资计划
A3: 序号 | B3: 项目名称 | C3: 建设阶段 | D3: 项目分类 | E3: 牵头责任单位 | F3: 建设单位 | G3: 项目建设起止年限 | H3: 建设地点 | I3: 项目建设内容及规模 | J3: 总投资 （万元） | K3: 2020年度工作计划 | L3: 2020年计划投资 （工程量） （万元） | M3: 2020年资金安排计划（万元） | P3: 备注
M4: 合计 | N4: 资金安排
N5: 区财政预算资金 | O5: 其它来源资金
A6: 合计 | B6: 126宗 | J6: 1528084 | L6: 94095 | M6: 8310 | N6: 8310
A7: 1 | B7: 演达二路（人民六路-开城大道南）改造工程（原演达路(人民六路-开城大道)改造工程） | C7: 新建 | D7: 市政基础设施 | E7: 区公用事业管理中心 | G7: 2020-2022 | H7: 淡水 | I7: 道路长680米,规划宽度30米,建设内容包含道路工程、给排水工程、电气工程、绿化工程、交通工程等 | J7: 4976 | K7: 启动道路、排水、绿化、电气工程建设 | L7: 1493 | M7: 100 | N7: 100 | P7: 25条连接路项目
A8: 2 | B8: 秋溪路（经四路—横岭河） | C8: 新建 | D8: 市政基础设施 | E8: 区公用事业管理中心 | G8: 2020-2022 | H8: 秋长 | I8: 道路长320米，规划宽36米。 | J8: 4200 | K8: 启动道路、排水、绿化、电气工程建设 | L8: 1260 | M8: 100 | N8: 100 | P8: 25条连接路项目/对接深圳连接路项目
A9: 3 | B9: 中山东路（经十九路-经二十五路） | C9: 新建 | D9: 市政基础设施 | E9: 区公用事业管理中心 | G9: 2020-2022 | H9: 淡水 | I9: 路长948米，规划宽60米，双向八车道,为城市主干道 | J9: 8777 | K9: 启动道路、排水、绿化、电气工程建设 | L9: 3511 | M9: 250 | N9: 250
A10: 4 | B10: 古屋水干流（白云路北侧）综合整治工程 | C10: 新建 | D10: 市政基础设施 | E10: 区公用事业管理中心 | G10: 2020-2022 | H10: 淡水 | I10: 长800米 | J10: 7975 | K10: 启动道路、排水、绿化、电气工程建设 | L10: 1595 | M10: 150 | N10: 150
A11: 5 | B11: 龙古井水支流综合整治工程 | C11: 新建 | D11: 市政基础设施 | E11: 区公用事业管理中心 | G11: 2020-2022 | H11: 淡水 | I11: 长2.5公里 | J11: 16960 | K11: 启动道路、排水、绿化、电气工程建设 | L11: 3392 | M11: 250 | N11: 250
A12: 6 | B12: 金柏路建设工程 | C12: 新建 | D12: 市政基础设施 | E12: 区公用事业管理中心 | G12: 2020-2022 | H12: 秋长 | I12: 道路长320米，规划宽20米。 | J12: 1800 | K12: 启动道路、排水、绿化、电气工程建设 | L12: 540 | M12: 40 | N12: 40
A13: 7 | B13: 鸿泰路建设工程 | C13: 新建 | D13: 市政基础设施 | E13: 区公用事业管理中心 | G13: 2020-2022 | H13: 秋长 | I13: 道路长800米，规划宽20～24米。 | J13: 4200 | K13: 启动道路、排水、绿化、电气工程建设 | L13: 1260 | M13: 100 | N13: 100
A14: 8 | B14: 人民路升级改造（人民四路-人民五路（龙海一路—白云三路）） | C14: 新建 | D14: 市政基础设施 | E14: 区公用事业管理中心 | G14: 2020-2022 | H14: 淡水 | I14: 道路全长约2860米,道路红线宽48、60米 | J14: 26817 | K14: 启动道路、排水、绿化、电气工程建设 | L14: 536 | M14: 5 | N14: 5
A15: 9 | B15: 人民路升级改造（人民三路-人民四路（白云三路—北环路）） | C15: 新建 | D15: 市政基础设施 | E15: 区公用事业管理中心 | G15: 2020-2022 | H15: 淡水 | I15: 道路全长约3527米，道路红线宽48、60米 | J15: 30000 | K15: 启动道路、排水、绿化、电气工程建设 | L15: 3000 | M15: 200 | N15: 200
A16: 10 | B16: 人民路升级改造（人民二路-人民三路（北环路—秋溪路）） | C16: 新建 | D16: 市政基础设施 | E16: 区公用事业管理中心 | G16: 2020-2022 | H16: 淡水 | I16: 道路全长约3080米，道路红线宽30米 | J16: 17865 | K16: 启动道路、排水、绿化、电气工程建设 | L16: 357 | M16: 5 | N16: 5
A17: 11 | B17: 金惠大道（人民四路-内环西路）升级改造工程 | C17: 新建 | D17: 市政基础设施 | E17: 区公用事业管理中心 | G17: 2020-2022 | H17: 淡水 | I17: 道路全长约2820米，道路红线宽45、60米 | J17: 15000 | K17: 启动道路、排水、绿化、电气工程建设 | L17: 1500 | M17: 100 | N17: 100
A18: 12 | B18: 市政广场升级改造 | C18: 新建 | D18: 市政基础设施 | E18: 区公用事业管理中心 | G18: 2020-2022 | H18: 淡水 | I18: 升级改造 | J18: 8000 | K18: 启动道路、排水、绿化、电气工程建设 | L18: 1200 | M18: 150 | N18: 150
A19: 13 | B19: 沈海高速侧边规划路建设工程 | C19: 新建 | D19: 市政基础设施 | E19: 区公用事业管理中心 | G19: 2020-2022 | H19: 淡水 | I19: 全长1070米，红线宽26米 | J19: 6834 | K19: 启动道路、排水、绿化、电气工程建设 | L19: 2050 | M19: 100 | N19: 100
A20: 14 | B20: 惠阳一中实验学校东侧道路建设工程 | C20: 新建 | D20: 市政基础设施 | E20: 区公用事业管理中心 | G20: 2020-2022 | H20: 淡水 | I20: 全长387米，红线宽15米 | J20: 1625 | K20: 启动道路、排水、绿化、电气工程建设 | L20: 650 | M20: 50 | N20: 50
A21: 15 | B21: 滨河北路跨会水楼河桥工程 | C21: 新建 | D21: 市政基础设施 | E21: 区公用事业管理中心 | G21: 2020-2022 | H21: 秋长 | I21: 桥梁建设 | J21: 2550 | K21: 启动桥梁工程建设 | L21: 1020 | M21: 50 | N21: 50
A22: 16 | B22: 上刘路（北环路至荔兴路） | C22: 新建 | D22: 市政基础设施 | E22: 区公用事业管理中心 | G22: 2020-2022 | H22: 淡水 | I22: 道路长679米，宽30米 | J22: 7000 | K22: 启动道路、排水、绿化、电气工程建设 | L22: 1400 | M22: 50 | N22: 50 | P22: 25条连接路项目
A23: 17 | B23: 学府路（河背街至荔兴路） | C23: 新建 | D23: 市政基础设施 | E23: 区公用事业管理中心 | G23: 2020-2022 | H23: 淡水 | I23: 道路全长610,道路规划红线宽30米. | J23: 4000 | K23: 启动道路、排水、绿化、电气工程建设 | L23: 800 | M23: 50 | N23: 50 | P23: 25条连接路项目
A24: 18 | B24: 经三路建设工程 | C24: 新建 | D24: 市政基础设施 | E24: 区公用事业管理中心 | G24: 2020-2022 | H24: 秋长 | I24: 道路长994米，规划宽24米。 | J24: 4845 | K24: 启动道路、排水、绿化、电气工程建设 | L24: 969 | M24: 50 | N24: 50 | P24: 25条连接路项目
A25: 19 | B25: 北环路（安博段）工程 | C25: 新建 | D25: 市政基础设施 | E25: 区公用事业管理中心 | G25: 2020-2022 | H25: 秋长 | I25: 道路长702米，规划宽42米。 | J25: 5800 | K25: 启动道路、排水、绿化、电气工程建设 | L25: 1160 | M25: 50 | N25: 50 | P25: 25条连接路项目
A26: 20 | B26: 体育文化公园（一期）综合改造工程 | C26: 新建 | D26: 市政基础设施 | E26: 区公用事业管理中心 | G26: 2020-2021 | H26: 淡水 | I26: 升级改造 | J26: 5200 | K26: 启动道路、排水、绿化、电气工程建设 | L26: 1040 | M26: 100 | N26: 100
A27: 21 | B27: 挺秀南路（迎宾大道-滨河北路） | C27: 新建 | D27: 市政基础设施 | E27: 区公用事业管理中心 | G27: 2020-2022 | H27: 秋长 | I27: 道路长3413米，规划红线宽42米 | J27: 25897 | K27: 启动道路、排水、绿化、电气工程建设 | L27: 5179 | M27: 100 | N27: 100 | P27: 25条连接路项目
A28: 22 | B28: 新九路水利工程 | C28: 新建 | D28: 市政基础设施 | E28: 区公用事业管理中心 | G28: 2020-2021 | H28: 秋长 | I28: 河道整治 | J28: 1198 | K28: 启动河道整治工程建设 | L28: 719 | M28: 100 | N28: 100
A29: 23 | B29: 象红路（惠南大道—将军湖路段） | C29: 新建 | D29: 市政基础设施 | E29: 区公用事业管理中心 | G29: 2020-2023 | H29: 秋长 | I29: 道路长2438米，规划宽36米、桥梁2座 | J29: 21500 | K29: 启动道路、排水、绿化、电气工程建设 | L29: 4300 | M29: 150 | N29: 150
A30: 24 | B30: 象岭二路（象岭北路—将军东路段） | C30: 新建 | D30: 市政基础设施 | E30: 区公用事业管理中心 | G30: 2020-2023 | H30: 秋长 | I30: 道路长1370米，规划宽42米,桥梁1座 | J30: 16000 | K30: 启动道路、排水、绿化、电气工程建设 | L30: 3200 | M30: 150 | N30: 150
A31: 25 | B31: 中山东路（星河东路-经十九路） | C31: 新建 | D31: 市政基础设施 | E31: 区公用事业管理中心 | G31: 2020-2023 | H31: 淡水 | I31: 中山东路(星河东路-经十九路）道路长982米，道路红线42米，双向六车道,为城市主干道 | J31: 9064 | K31: 启动道路、排水、绿化、电气工程建设 | L31: 2719 | M31: 200 | N31: 200
A32: 26 | B32: 淡水河（深圳交界-外环路桥段） | C32: 新建 | D32: 市政基础设施 | E32: 区公用事业管理中心 | G32: 2020-2022 | I32: 全长8.2公里 | J32: 128200 | K32: 启动河道整治工程建设 | L32: 2564 | M32: 300 | N32: 300
A33: 27 | B33: 中兴路 | C33: 新建 | D33: 市政基础设施 | E33: 区公用事业管理中心 | G33: 2020-2022 | H33: 秋长 | I33: 长1.5公里，宽36米 | J33: 12000 | K33: 启动道路、排水、绿化、电气工程建设 | L33: 2400 | M33: 100 | N33: 100
A34: 28 | B34: 草堆岭路（坪山河—白云坑街）（原爱民西路（坪山河—白云坑街）建设工程） | C34: 新建 | D34: 市政基础设施 | E34: 区公用事业管理中心 | G34: 2020-2021 | H34: 淡水 | I34: 道路全长约762米，道路红线宽16、24米 | J34: 4123 | K34: 启动道路、排水、绿化、电气工程建设 | L34: 825 | M34: 50 | N34: 50
A35: 29 | B35: 爱民西路（兴湖路—坪山河） | C35: 新建 | D35: 市政基础设施 | E35: 区公用事业管理中心 | G35: 2020-2021 | H35: 淡水 | I35: 长620米，宽16米，含桥梁建设 | J35: 4600 | K35: 启动道路、排水、绿化、电气工程建设 | L35: 920 | M35: 50 | N35: 50
A36: 30 | B36: 兴湖路（云新大道-白云路） | C36: 新建 | D36: 市政基础设施 | E36: 区公用事业管理中心 | G36: 2020-2021 | H36: 淡水 | I36: 道路全长约780米，道路红线宽36米 | J36: 5500 | K36: 启动道路、排水、绿化、电气工程建设 | L36: 1100 | M36: 100 | N36: 100
A37: 31 | B37: 馨谷路（人民路至水背路段） | C37: 新建 | D37: 市政基础设施 | E37: 区公用事业管理中心 | G37: 2021-2022 | H37: 秋长 | I37: 长730米，宽32米 | J37: 3500 | K37: 启动道路、排水、绿化、电气工程建设 | L37: 700 | M37: 100 | N37: 100
A38: 32 | B38: 馨谷路（水背路至将军东路段） | C38: 新建 | D38: 市政基础设施 | E38: 区公用事业管理中心 | G38: 2021-2023 | H38: 秋长 | I38: 长2770米，宽32米 | J38: 16000 | K38: 启动道路、排水、绿化、电气工程建设 | L38: 3200 | M38: 100 | N38: 100
A39: 33 | B39: 秋洋路延长段 | C39: 新建 | D39: 市政基础设施 | E39: 区公用事业管理中心 | G39: 2020-2021 | H39: 三和 | I39: 城市主干道、双向六车道，设计时速60公里/小时，道路全长250米，红线宽度42米 | J39: 2400 | K39: 启动道路、排水、绿化、电气工程建设 | L39: 480 | M39: 50 | N39: 50
A40: 34 | B40: 惠阳区妇幼保健院迁建工程（一期）临时停车场 | C40: 新建 | D40: 市政基础设施 | E40: 区公用事业管理中心 | G40: 2020 | H40: 三和 | I40: 建设地面普通停车场，停车位201个 | J40: 315 | K40: 启动道路、排水、绿化、电气工程建设 | L40: 189 | M40: 30 | N40: 30
A41: 35 | B41: 旺多路（秋宝路至北环路）道路建设工程 | C41: 新建 | D41: 市政基础设施 | E41: 区公用事业管理中心 | G41: 2020-2021 | H41: 秋长 | I41: 道路全长约840米，规划路宽30米，双向四车道 | J41: 6700 | K41: 启动道路、排水、绿化、电气工程建设 | L41: 1340 | M41: 100 | N41: 100
A42: 36 | B42: 北环路（新深惠快速至新七路）道路建设工程 | C42: 新建 | D42: 市政基础设施 | E42: 区公用事业管理中心 | G42: 2020-2021 | H42: 秋长 | I42: 道路全长约880米，规划道路宽42米，双向六车道 | J42: 7920 | K42: 启动道路、排水、绿化、电气工程建设 | L42: 1584 | M42: 100 | N42: 100
A43: 37 | B43: 淡水河（内环路至淡水糖厂段）品质提升工程 | C43: 新建 | D43: 市政基础设施 | E43: 区公用事业管理中心 | G43: 2020-2022 | H43: 惠阳 | I43: 全长7.33公里 | J43: 30000 | K43: 启动河道整治工程建设 | L43: 1000 | M43: 50 | N43: 50
A44: 38 | B44: 府西北街（云新大道至福利路） | C44: 新建 | D44: 市政基础设施 | E44: 区公用事业管理中心 | G44: 2019-2020 | H44: 淡水 | I44: 道路长241米，规划宽54米，双向4车道加停车位，为支路。 | J44: 1570 | K44: 通车 | L44: 1099 | M44: 200 | N44: 200
A45: 39 | B45: 惠州南站新城片区PPP项目涉铁工程（内环东路旱桥下穿杭深铁路涉铁工程） | C45: 新建 | D45: 市政基础设施 | E45: 区公用事业管理中心 | G45: 2020-2022 | H45: 淡水 | I45: 桥梁面积6920平方米，道路面积9051平方米 | J45: 11000 | K45: 启动涉铁工程建设 | L45: 880 | M45: 100 | N45: 100
A46: 40 | B46: 仲恺路（白云路至坪山河桥）供电迁改工程 | C46: 新建 | D46: 市政基础设施 | E46: 区公用事业管理中心 | G46: 2020-2022 | H46: 淡水 | I46: 白河线#2塔至新一村民小组专变的电缆（约300m）迁改 | J46: 603 | K46: 启动供电迁改工程 | L46: 241 | M46: 50 | N46: 50
A47: 41 | B47: 联兴路（惠南大道-御和南路）供电迁改工程 | C47: 新建 | D47: 市政基础设施 | E47: 区公用事业管理中心 | G47: 2020-2021 | H47: 三和 | I47: 10kV杨屋线F19和10kV矮岭线F9两回线路电网迁改 | J47: 520 | K47: 启动供电迁改工程 | L47: 208 | M47: 50 | N47: 50
A48: 42 | B48: 大门埔路（经三十一路-内环东路）供电迁改工程 | C48: 新建 | D48: 市政基础设施 | E48: 区公用事业管理中心 | G48: 2020-2022 | H48: 淡水 | I48: 大门埔变电站往惠大高速方向4回架空线路与19回电缆线路、大门埔变电站往淡水方向电缆沟内13回电缆迁改 | J48: 2900 | K48: 启动供电迁改工程 | L48: 1160 | M48: 100 | N48: 100
A49: 43 | B49: 惠阳中心城区排水管网清疏 | C49: 新建 | D49: 市政基础设施 | E49: 区公用事业管理中心 | G49: 2020-2021 | H49: 惠阳城区 | J49: 500 | K49: 排水管网清疏 | L49: 500 | M49: 200 | N49: 200
A50: 44 | B50: 秋溪路（深圳边界-新九路） | C50: 新建 | D50: 市政基础设施 | E50: 区公用事业管理中心 | G50: 2021-2023 | H50: 秋长 | I50: 道路全长约3800，道路红线宽36米，双向4车道。 | J50: 24218 | K50: 启动前期手续 | L50: 484 | M50: 20 | N50: 20 | P50: 对接深圳连接路项目
A51: 45 | B51: 秋溪路（横岭河-迎宾大道） | C51: 新建 | D51: 市政基础设施 | E51: 区公用事业管理中心 | G51: 2021-2023 | H51: 秋长 | I51: 道路全长约3628米，道路红线宽36米，双向4车道。 | J51: 23122 | K51: 启动前期手续 | L51: 694 | M51: 20 | N51: 20 | P51: 对接深圳连接路项目
A52: 46 | B52: 中山东路（经二十五路-经三十一路） | C52: 新建 | D52: 市政基础设施 | E52: 区公用事业管理中心 | G52: 2021-2024 | H52: 淡水 | I52: 道路长1800米，规划宽60米，双向八车道,为城市主干道 | J52: 25323 | K52: 启动前期手续 | L52: 580 | M52: 20 | N52: 20
A53: 47 | B53: 淡水河（深圳交界-惠澳铁路桥段） | C53: 新建 | D53: 市政基础设施 | E53: 区公用事业管理中心 | G53: 2021-2023 | I53: 全长约26.48公里淡水河勘察设计工作 | J53: 7626 | K53: 启动勘察设计前期手续 | L53: 2200 | M53: 200 | N53: 200
A54: 48 | B54: 惠州南站PPP项目涉铁工程 | C54: 新建 | D54: 市政基础设施 | E54: 区公用事业管理中心 | G54: 2021-2023 | H54: 淡水 | I54: 包括纬五路下穿通道工程、龙古井支流涵洞工程、古屋水干流涵洞工程、黄录坑涵洞工程、大门埔排洪渠涵洞工程等涉铁工程 | J54: 24300 | K54: 启动前期手续 | L54: 200 | M54: 10 | N54: 10
A55: 49 | B55: 城区道路升级改造工程(开城大道（白云五路-龙海一路）（原开城大道（白云路-大亚湾交界）升级改造工程）) | C55: 新建 | D55: 市政基础设施 | E55: 区公用事业管理中心 | G55: 2021-2023 | H55: 淡水 | I55: 路长约3200米，宽39米 | J55: 15000 | K55: 启动前期手续 | L55: 450 | M55: 30 | N55: 30
A56: 50 | B56: 城区道路升级改造工程(开城大道（中山一、二、三路（承修四路-星河西五路）（原中山路（承修路~星河西路）升级改造工程）) | C56: 新建 | D56: 市政基础设施 | E56: 区公用事业管理中心 | G56: 2021-2023 | H56: 淡水 | I56: 路长约2510米，宽28米 | J56: 13000 | K56: 启动前期手续 | L56: 390 | M56: 20 | N56: 20
A57: 51 | B57: 城区道路升级改造工程(长安北-中-南路（卢屋路-爱民东路）(原长安路（卢屋路~爱民路）升级改造工程)道路升级改造) | C57: 新建 | D57: 市政基础设施 | E57: 区公用事业管理中心 | G57: 2021-2023 | H57: 淡水 | I57: 路长约3000米，宽24米 | J57: 12000 | K57: 启动前期手续 | L57: 360 | M57: 10 | N57: 10
A58: 52 | B58: 城区道路升级改造工程(叶挺西-中路(万顺一路-星河西五路)道路升级改造) | C58: 新建 | D58: 市政基础设施 | E58: 区公用事业管理中心 | G58: 2021-2023 | H58: 淡水 | I58: 路长约1100米，宽28米 | J58: 5500 | K58: 启动前期手续 | L58: 165 | M58: 5 | N58: 5
A59: 53 | B59: 城区道路升级改造工程(万顺路升级改造工程) | C59: 新建 | D59: 市政基础设施 | E59: 区公用事业管理中心 | G59: 2021-2023 | H59: 淡水 | I59: 路长约2100米，宽24米 | J59: 8400 | K59: 启动前期手续 | L59: 252 | M59: 10 | N59: 10
A60: 54 | B60: 城区道路升级改造工程(承修一-二-三-四路(东华大道中-星河西五路)道路升级改造) | C60: 新建 | D60: 市政基础设施 | E60: 区公用事业管理中心 | G60: 2021-2023 | H60: 淡水 | I60: 路长2600米，宽24米 | J60: 9400 | K60: 启动前期手续 | L60: 282 | M60: 10 | N60: 10
A61: 55 | B61: 城区道路升级改造工程(南门中—南路道路升级改造) | C61: 新建 | D61: 市政基础设施 | E61: 区公用事业管理中心 | G61: 2021-2023 | H61: 淡水 | I61: 路长700米，宽30米 | J61: 2300 | K61: 启动前期手续 | L61: 69 | M61: 5 | N61: 5
A62: 56 | B62: 纬二十七路（经二十六路至经二十八路段） | C62: 新建 | D62: 市政基础设施 | E62: 区公用事业管理中心 | G62: 2021-2022 | H62: 淡水 | I62: 长600米，宽16米 | J62: 2187 | K62: 启动前期手续 | L62: 66 | M62: 5 | N62: 5
A63: 57 | B63: 秋洋路（茶园一路—将军湖路） | C63: 新建 | D63: 市政基础设施 | E63: 区公用事业管理中心 | G63: 2021-2023 | H63: 秋长 | I63: 长2000米，宽42米。（含一座约100米长桥梁） | J63: 19460 | K63: 启动前期手续 | L63: 584 | M63: 20 | N63: 20
A64: 58 | B64: 亚来路（将军路-将军湖路） | C64: 新建 | D64: 市政基础设施 | E64: 区公用事业管理中心 | G64: 2021-2023 | H64: 秋长 | I64: 长990米，宽30米。 | J64: 7746 | K64: 启动前期手续 | L64: 232 | M64: 10 | N64: 10
A65: 59 | B65: 岭湖路-利成路（沙坑大道-迎宾大道） | C65: 新建 | D65: 市政基础设施 | E65: 区公用事业管理中心 | G65: 2021-2023 | H65: 秋长 | I65: 长1900米，宽30米。 | J65: 14866 | K65: 启动前期手续 | L65: 446 | M65: 10 | N65: 10
A66: 60 | B66: 景观南路（河背街-人民四路）（原景观大道（河背街-人民路）建设工程） | C66: 新建 | D66: 市政基础设施 | E66: 区公用事业管理中心 | G66: 2021-2023 | H66: 淡水 | I66: 规划宽24米，长934米 | J66: 6368 | K66: 启动前期手续 | L66: 191 | M66: 10 | N66: 10
A67: 61 | B67: 塘井路（秋宝路至鸿威路）（原白永南路（秋宝路至鸿威路）建设工程） | C67: 新建 | D67: 市政基础设施 | E67: 区公用事业管理中心 | G67: 2021-2023 | H67: 秋长 | I67: 道路长788米，规划宽度30米，雨水管径DN800，雨水箱涵4*2.5米长约30米。 | J67: 6148 | K67: 启动前期手续 | L67: 184 | M67: 10 | N67: 10
A68: 62 | B68: 塘井路（恬波路至秋宝路）（原白永北路（秋宝路至环西路）建设工程） | C68: 新建 | D68: 市政基础设施 | E68: 区公用事业管理中心 | G68: 2021-2023 | H68: 秋长 | I68: 道路长约795米，规划宽度30米。雨水管道管径DN600至DN1200。 | J68: 6104 | K68: 启动前期手续 | L68: 183 | M68: 10 | N68: 10
A69: 63 | B69: 坪山河周边市政道路工程(坪山河东侧16米规划路(白云路-爱民西路）) | C69: 新建 | D69: 市政基础设施 | E69: 区公用事业管理中心 | G69: 2021-2023 | H69: 淡水 | I69: 道路全长约369米,道路红线宽16米，道路等级为城市支路，双向2车道 | J69: 1974 | K69: 启动前期手续 | L69: 59 | M69: 5 | N69: 5
A70: 64 | B70: 坪山河周边市政道路工程(坪山河东侧30米规划路（规划六号路-深汕高速路北侧路）) | C70: 新建 | D70: 市政基础设施 | E70: 区公用事业管理中心 | G70: 2021-2023 | H70: 淡水 | I70: 道路全长约512米,道路红线宽30米，道路等级为城市次干道，双向4车道 | J70: 3340 | K70: 启动前期手续 | L70: 100 | M70: 5 | N70: 5
A71: 65 | B71: 坪山河周边市政道路工程(坪山河西侧16米规划路（爱民西路-龙海一路）) | C71: 新建 | D71: 市政基础设施 | E71: 区公用事业管理中心 | G71: 2021-2023 | H71: 淡水 | I71: 道路全长约1290米,道路红线宽16米，道路等级为城市支路，双向2车道， | J71: 5294 | K71: 启动前期手续 | L71: 159 | M71: 5 | N71: 5
A72: 66 | B72: 坪山河周边市政道路工程(坪山河西侧16米规划路（规划六号路-白云路）) | C72: 新建 | D72: 市政基础设施 | E72: 区公用事业管理中心 | G72: 2021-2023 | H72: 淡水 | I72: 道路全长约1413米,道路红线宽16米，道路等级为城市支路，双向2车道， | J72: 5230 | K72: 启动前期手续 | L72: 157 | M72: 5 | N72: 5
A73: 67 | B73: 坪山河周边市政道路工程(深汕高速路北侧路(内环路-坪山河东侧30米规划路）) | C73: 新建 | D73: 市政基础设施 | E73: 区公用事业管理中心 | G73: 2021-2023 | H73: 淡水 | I73: 道路全长约514米,道路红线宽30米，道路等级为城市次干道，双向4车道，跨坪山河桥梁一座 | J73: 6353 | K73: 启动前期手续 | L73: 191 | M73: 5 | N73: 5
A74: 68 | B74: 淡丘路（河坝路-星河西一路）（原博雅实验学校北侧24米规划路建设工程） | C74: 新建 | D74: 市政基础设施 | E74: 区公用事业管理中心 | G74: 2021-2023 | H74: 淡水 | I74: 道路全长约620米，道路红线宽24米，道路等级为城市次干道，双向4车道 | J74: 4208 | K74: 启动前期手续 | L74: 126 | M74: 5 | N74: 5
A75: 69 | B75: 路灯远程控制系统专项费用 | C75: 新建 | D75: 市政基础设施 | E75: 区公用事业管理中心 | G75: 2021-2023 | J75: 1000 | K75: 启动前期手续 | L75: 30 | M75: 5 | N75: 5
A76: 70 | B76: 打铁岭公园 | C76: 新建 | D76: 市政基础设施 | E76: 区公用事业管理中心 | G76: 2021-2024 | H76: 淡水 | I76: 公园西邻星河东路，靠近金星大道，公园规划面积约48公顷。 | J76: 8000 | K76: 启动前期手续 | L76: 80 | M76: 5 | N76: 5
A77: 71 | B77: 卢屋山公园 | C77: 新建 | D77: 市政基础设施 | E77: 区公用事业管理中心 | G77: 2021-2024 | H77: 淡水 | I77: 卢屋山公园东邻淡澳河(大埔桥-叶挺桥)，西面为现状居住区，靠近长安路，北联卢屋路，南接叶挺路，公园规划面积约7.4公顷。 | J77: 3000 | K77: 启动前期手续 | L77: 30 | M77: 5 | N77: 5
A78: 72 | B78: 爱民东路（南站广场西侧段）建设工程 | C78: 新建 | D78: 市政基础设施 | E78: 区公用事业管理中心 | G78: 2021-2022 | H78: 淡水 | I78: 道路全长约300米，道路红线宽24米 | J78: 2040 | K78: 启动前期手续 | L78: 102 | M78: 5 | N78: 5
A79: 73 | B79: 将军湖路和象岭北路（惠南大道—将军东路段） | C79: 新建 | D79: 市政基础设施 | E79: 区公用事业管理中心 | G79: 2021-2024 | H79: 三和 | I79: 道路长4109米，规划宽42米 | J79: 36400 | K79: 启动前期手续 | L79: 728 | M79: 20 | N79: 20 | P79: 土地整理行动方案市政配套项目
A80: 74 | B80: 象秋路（象岭北路—将军东路段） | C80: 新建 | D80: 市政基础设施 | E80: 区公用事业管理中心 | G80: 2021-2024 | H80: 三和 | I80: 道路长1364米，规划宽42米 | J80: 12070 | K80: 启动前期手续 | L80: 241 | M80: 10 | N80: 10
A81: 75 | B81: 象岭一路（象岭北路—将军东路段） | C81: 新建 | D81: 市政基础设施 | E81: 区公用事业管理中心 | G81: 2021-2024 | H81: 三和 | I81: 道路长1517米，规划宽30米 | J81: 9102 | K81: 启动前期手续 | L81: 182 | M81: 5 | N81: 5
A82: 76 | B82: 将军湖路（将军东路—迎宾大道段） | C82: 新建 | D82: 市政基础设施 | E82: 区公用事业管理中心 | G82: 2021-2024 | H82: 三和 | I82: 道路长2350米，规划宽42米 | J82: 18500 | K82: 启动前期手续 | L82: 370 | M82: 10 | N82: 10
A83: 77 | B83: 棠梓岭路（规划路至惠南大道） | C83: 新建 | D83: 市政基础设施 | E83: 区公用事业管理中心 | G83: 2021-2024 | H83: 三和 | I83: 道路长820米，规划宽30米 | J83: 4920 | K83: 启动前期手续 | L83: 98 | M83: 5 | N83: 5
A84: 78 | B84: 站前快速路（惠大高速辅道-迎宾大道） | C84: 新建 | D84: 市政基础设施 | E84: 区公用事业管理中心 | G84: 2021-2024 | H84: 三和 | I84: 道路长3200米，规划宽60米 | J84: 168153 | K84: 启动前期手续 | L84: 1682 | M84: 40 | N84: 40
A85: 79 | B85: 规划D2路 | C85: 新建 | D85: 市政基础设施 | E85: 区公用事业管理中心 | G85: 2021-2024 | H85: 三和 | I85: 道路长1600米，规划宽32米 | J85: 10240 | K85: 启动前期手续 | L85: 205 | M85: 10 | N85: 10
A86: 80 | B86: 西五路 | C86: 新建 | D86: 市政基础设施 | E86: 区公用事业管理中心 | G86: 2021-2024 | H86: 三和 | I86: 道路长1300米，规划宽30米 | J86: 7800 | K86: 启动前期手续 | L86: 156 | M86: 5 | N86: 5
A87: 81 | B87: 永兴路（北环路-淡水河）两侧慢行道改造工程 | C87: 新建 | D87: 市政基础设施 | E87: 区公用事业管理中心 | G87: 2021-2022 | H87: 淡水 | I87: 北环路至深惠高速段道路长约1300米，每侧人行道及绿化总宽约15米；深惠高速至淡水河段道路长约900米，每侧人行道宽约4米。升级改造内容包括道路两侧人行道升级改造、边绿化带升级改造等内容。 | J87: 6000 | K87: 启动前期手续 | L87: 60 | M87: 2 | N87: 2
A88: 82 | B88: 北环路（人民路至内环西路）两侧慢行道改造工程 | C88: 新建 | D88: 市政基础设施 | E88: 区公用事业管理中心 | G88: 2021-2022 | H88: 淡水 | I88: 道路长约2650米，每侧人行道及绿化总宽约10米，升级改造内容包括道路两侧人行道升级改造、边绿化带升级改造等内容。 | K88: 启动前期手续 | M88: 2 | N88: 2
A89: 83 | B89: 内环西路（北环路至白云路）两侧慢行道改造工程 | C89: 新建 | D89: 市政基础设施 | E89: 区公用事业管理中心 | G89: 2021-2022 | H89: 淡水 | I89: 道路长约2830米，每侧人行道及绿化总宽约14米，升级改造内容包括人行道两侧升级改造、安装防护栏杆、边绿化带升级改造等内容。 | K89: 启动前期手续 | M89: 2 | N89: 2
A90: 84 | B90: 滨河北路（北环路至金秋大道）两侧侧慢行道改造工程 | C90: 新建 | D90: 市政基础设施 | E90: 区公用事业管理中心 | G90: 2021-2022 | H90: 淡水 | I90: 道路长约2017米，南侧人行道及绿化宽度约8米，北侧人行道宽度约4米，升级改造内容包括人行道两侧升级改造、边绿化带升级改造等内容。 | K90: 启动前期手续 | M90: 2 | N90: 2
A91: 85 | B91: 金秋大道(环城路至人民路)工程 | C91: 新建 | D91: 市政基础设施 | E91: 区公用事业管理中心 | G91: 2021-2023 | H91: 秋长 | I91: 道路长460米，规划红线宽60米 | J91: 6800 | K91: 启动前期手续 | L91: 204 | M91: 20 | N91: 20
A92: 86 | B92: 秋溪路(新九路—新深惠快速)工程（原秋溪中路） | C92: 新建 | D92: 市政基础设施 | E92: 区公用事业管理中心 | G92: 2021-2023 | H92: 秋长 | I92: 道路长1460米，规划宽36米。 | J92: 10235 | K92: 启动前期手续 | L92: 307 | M92: 20 | N92: 20 | P92: 25条连接路项目/对接深圳连接路项目
A93: 87 | B93: 新深惠快速路（秋溪南路—白云大道）工程 | C93: 新建 | D93: 市政基础设施 | E93: 区公用事业管理中心 | G93: 2021-2024 | H93: 秋长 | I93: 路线全长约5.32km，道路等级为城市主干道，规划红线宽度60～65m。 | J93: 172428 | K93: 启动前期手续 | L93: 3449 | M93: 50 | N93: 50 | P93: 对接深圳连接路项目
A94: 88 | B94: 24米规划路(永兴路至河背路)工程 | C94: 新建 | D94: 市政基础设施 | E94: 区公用事业管理中心 | G94: 2021-2023 | H94: 淡水 | I94: 道路长575米，规划红线宽24米 | J94: 3500 | K94: 启动前期手续 | L94: 105 | M94: 10 | N94: 10 | P94: 25条连接路项目
A95: 89 | B95: 秋宝北路 | C95: 新建 | D95: 市政基础设施 | E95: 区公用事业管理中心 | G95: 2021-2023 | H95: 秋长 | I95: 道路长1985米，规划宽度30米。 | J95: 15757 | K95: 启动前期手续 | L95: 473 | M95: 10 | N95: 10 | P95: 25条连接路项目/对接深圳连接路项目
A96: 90 | B96: 站前路（深汕高速至惠大高速辅道）建设工程 | C96: 新建 | D96: 市政基础设施 | E96: 区公用事业管理中心 | G96: 2021-2024 | H96: 淡水 | I96: 道路长4640米，规划宽60米 | J96: 112000 | K96: 启动前期手续 | L96: 1120 | M96: 30 | N96: 30
A97: 91 | B97: 内环东路跨深汕西高速公路桥梁工程 | C97: 新建 | D97: 市政基础设施 | E97: 区公用事业管理中心 | G97: 2021-2024 | H97: 淡水 | I97: 道路长600米，规划宽30米 | J97: 18000 | K97: 启动前期手续 | L97: 360 | M97: 20 | N97: 20
A98: 92 | B98: 半岛桥及连接路升级改造工程 | C98: 新建 | D98: 市政基础设施 | E98: 区公用事业管理中心 | G98: 2021-2024 | H98: 淡水 | I98: 包括旧桥拆除面积约6400平方米、新建桥梁面积约8100平方米、新建道路面积约5000平方米等。 | J98: 20000 | K98: 启动前期手续 | L98: 400 | M98: 20 | N98: 20
A99: 93 | B99: 体育文化路工程 | C99: 新建 | D99: 市政基础设施 | E99: 区公用事业管理中心 | G99: 2021-2022 | H99: 淡水 | I99: 长约350米，红线宽30米 | J99: 2000 | K99: 启动前期手续 | L99: 40 | M99: 10 | N99: 10
A100: 94 | B100: 纳兴路（纳善路－惠澳大道） | C100: 新建 | D100: 市政基础设施 | E100: 区公用事业管理中心 | G100: 2021－2023 | H100: 淡水 | I100: 长753米，宽32米（其中包括涉及上跨惠大铁桥梁工程长约140米） | J100: 4520 | K100: 启动前期手续 | L100: 90 | M100: 10 | N100: 10
A101: 95 | B101: 洋拾路（纳沙路－纳兴路） | C101: 新建 | D101: 市政基础设施 | E101: 区公用事业管理中心 | G101: 2021－2023 | H101: 淡水 | I101: 长1492米，宽24米 | J101: 7500 | K101: 启动前期手续 | L101: 150 | M101: 10 | N101: 10
A102: 96 | B102: 石垄东街（洋拾路－惠澳大道） | C102: 新建 | D102: 市政基础设施 | E102: 区公用事业管理中心 | G102: 2021－2023 | H102: 淡水 | I102: 长358米，宽18米 | J102: 1500 | K102: 启动前期手续 | L102: 30 | M102: 2 | N102: 2
A103: 97 | B103: 东方路 | C103: 新建 | D103: 市政基础设施 | E103: 区公用事业管理中心 | G103: 2021-2022 | H103: 秋长 | I103: 城市支路，道路长793米，宽24米 | J103: 4000 | K103: 启动前期手续 | L103: 200 | M103: 10 | N103: 10
A104: 98 | B104: 北环路（秋湖路-内环西路） | C104: 新建 | D104: 市政基础设施 | E104: 区公用事业管理中心 | G104: 2021-2022 | H104: 秋长 | I104: 长957.6米，宽42米-90米（其中包括桥梁工程长约100米） | J104: 12000 | K104: 启动前期手续 | L104: 240 | M104: 10 | N104: 10
A105: 99 | B105: 惠州南站新城片区PPP项目涉铁工程（大门埔路隧道下穿惠大铁路涉铁工程） | C105: 新建 | D105: 市政基础设施 | E105: 区公用事业管理中心 | G105: 2021－2023 | H105: 淡水 | I105: 全长678米，其中铁路段顶进隧道20米，现浇封闭式隧道140米，隧道敞口段327米 | J105: 30000 | K105: 启动涉铁工程建设 | L105: 600 | M105: 50 | N105: 50
A106: 100 | B106: 惠州南站新城片区PPP项目涉铁工程（中山东路框架桥下穿惠大铁路涉铁工程） | C106: 新建 | D106: 市政基础设施 | E106: 区公用事业管理中心 | G106: 2021－2023 | H106: 淡水 | I106: 全长175.83米，其中铁路段顶进涵洞20米，道路工程155.83米 | J106: 9000 | K106: 启动涉铁工程建设 | L106: 180 | M106: 10 | N106: 10
A107: 101 | B107: 惠州南站新城片区PPP项目涉铁工程（纬五路下穿通道工程） | C107: 新建 | D107: 市政基础设施 | E107: 区公用事业管理中心 | G107: 2021－2023 | H107: 淡水 | I107: 全长578米，其中铁路段顶进涵洞20米 | J107: 12100 | K107: 启动涉铁工程建设 | L107: 242 | M107: 20 | N107: 20
A108: 102 | B108: 财政投资项目涉铁工程 | C108: 新建 | D108: 市政基础设施 | E108: 区公用事业管理中心 | G108: 2021－2023 | H108: 淡水 | I108: 人民四路-人民五路（龙海一路—白云三路）、开城大道（白云五路-龙海一路）、仲恺路（人民路-开城大道）、棠梓岭路（规划路至惠南大道）、规划D2路、纳兴路（纳善路－惠澳大道）涉铁项目 | J108: 20000 | K108: 启动前期手续 | L108: 400 | M108: 30 | N108: 30
A109: 103 | B109: 象岭二路（将军东路—楼新路）建设工程 | C109: 新建 | D109: 市政基础设施 | E109: 区公用事业管理中心 | G109: 2020-2021 | H109: 三和 | I109: 道路长约700米，规划红线宽42米，双向六车道，城市主干道。 | J109: 6000 | K109: 启动前期手续 | L109: 180 | M109: 10 | N109: 10
A110: 104 | B110: 淡水河D线DN800污水主管清淤修复工程 | C110: 新建 | D110: 市政基础设施 | E110: 区公用事业管理中心 | G110: 2020-2021 | H110: 秋长 | I110: DN800污水主管，2.2公里 | J110: 300 | K110: 启动前期手续 | L110: 6 | M110: 1 | N110: 1
A111: 105 | B111: 金湖路（张河沥-淡水河）排水管网清淤修复工程 | C111: 新建 | D111: 市政基础设施 | E111: 区公用事业管理中心 | G111: 2020-2021 | H111: 秋长 | I111: 道路长1.7公里，其中污水管DN800-DN1000，2.5公里 | J111: 170 | K111: 启动前期手续 | L111: 3 | M111: 1 | N111: 1
A112: 106 | B112: 内环西路（白云路-北环路）排水管网清淤修复工程 | C112: 新建 | D112: 市政基础设施 | E112: 区公用事业管理中心 | G112: 2020-2021 | H112: 淡水 | I112: 道路长2.8公里，其中污水管DN400-600，2.3公里 | J112: 1000 | K112: 启动前期手续 | L112: 20 | M112: 2 | N112: 2
A113: 107 | B113: 北环路（内环西路-永兴路）排水管网清淤修复工程 | C113: 新建 | D113: 市政基础设施 | E113: 区公用事业管理中心 | G113: 2020-2021 | H113: 淡水 | I113: 道路长4.3公里，其中污水管DN400-800，8.0公里 | J113: 300 | K113: 启动前期手续 | L113: 6 | M113: 1 | N113: 1
A114: 108 | B114: 秋湖路（秋宝路-白云路）排水管网清淤修复工程 | C114: 新建 | D114: 市政基础设施 | E114: 区公用事业管理中心 | G114: 2020-2021 | H114: 秋长 | I114: 道路长3.6公里，其中污水管DN500，2.0公里 | J114: 360 | K114: 启动前期手续 | L114: 7 | M114: 2 | N114: 2
A115: 109 | B115: 行诚工业园入园道路（新桥东片区）排水管网清淤修复工程 | C115: 新建 | D115: 市政基础设施 | E115: 区公用事业管理中心 | G115: 2020-2021 | H115: 淡水 | I115: 道路长1.8公里，污水管DN300-800，1.8公里 | J115: 300 | K115: 启动前期手续 | L115: 6 | M115: 1 | N115: 1
A116: 110 | B116: 永兴路（迎宾大道-铁桥）排水管网清疏修复工程 | C116: 新建 | D116: 市政基础设施 | E116: 区公用事业管理中心 | G116: 2020-2021 | H116: 淡水 | I116: 道路长3.0公里，污水管DN600-1000，4.4公里 | J116: 500 | K116: 启动前期手续 | L116: 10 | M116: 2 | N116: 2
A117: 111 | B117: 金秋大道（秋宝路-北环路）排水管网清疏修复工程 | C117: 新建 | D117: 市政基础设施 | E117: 区公用事业管理中心 | G117: 2020-2021 | H117: 秋长 | I117: 道路长1.6公里，污水管DN400-600，3.0公里 | J117: 290 | K117: 启动前期手续 | L117: 6 | M117: 1 | N117: 1
A118: 112 | B118: 河背街（人民路-永兴路）DN600-100排水管道清淤工程 | C118: 新建 | D118: 市政基础设施 | E118: 区公用事业管理中心 | G118: 2020-2021 | H118: 淡水 | I118: 排水管道DN600-100，1.5公里 | J118: 180 | K118: 启动前期手续 | L118: 4 | M118: 1 | N118: 1
A119: 113 | B119: 南湖路（爱民路-承修路）DN800-1000雨水主管清淤工程 | C119: 新建 | D119: 市政基础设施 | E119: 区公用事业管理中心 | G119: 2020-2021 | H119: 淡水 | I119: 雨水主管DN800-1000，1.2公里 | J119: 200 | K119: 启动前期手续 | L119: 4 | M119: 1 | N119: 1
A120: 114 | B120: 爱民西路（承修路-淡澳河）DN600-3000X2000砼雨水主管清淤工程 | C120: 新建 | D120: 市政基础设施 | E120: 区公用事业管理中心 | G120: 2020-2021 | H120: 淡水 | I120: 雨水主管DN600-3000X2000，4.0公里 | J120: 200 | K120: 启动前期手续 | L120: 4 | M120: 1 | N120: 1
A121: 115 | B121: 淡澳河（大埔桥-淡水污水处理厂）DN1600污水主管清淤工程 | C121: 新建 | D121: 市政基础设施 | E121: 区公用事业管理中心 | G121: 2020-2021 | H121: 淡水 | I121: 污水主管DN1600，1.8公里 | J121: 250 | K121: 启动前期手续 | L121: 5 | M121: 1 | N121: 1
A122: 116 | B122: 东华大道（金惠大道-淡水河边）排水管网修复工程 | C122: 新建 | D122: 市政基础设施 | E122: 区公用事业管理中心 | G122: 2020-2021 | H122: 淡水 | I122: 道路长1.3公里 | J122: 150 | K122: 启动前期手续 | L122: 3 | M122: 1 | N122: 1
A123: 117 | B123: 惠阳淡水老城区（叶挺路-开城大道-中山路-星河西路）试点区域雨污分流工程（区域面积28.0ha） | C123: 新建 | D123: 市政基础设施 | E123: 区公用事业管理中心 | G123: 2020-2021 | H123: 淡水 | I123: 试点区域面积28.0ha | J123: 2900 | K123: 启动前期手续 | L123: 58 | M123: 2 | N123: 2
A124: 118 | B124: 惠阳秋长（金秋大道-秋宝路-滨河北路-桔园路）试点区域雨污分流工程（区域面积39.4ha） | C124: 新建 | D124: 市政基础设施 | E124: 区公用事业管理中心 | G124: 2020-2021 | H124: 秋长 | I124: 试点区域面积39.4ha | J124: 2900 | K124: 启动前期手续 | L124: 58 | M124: 2 | N124: 2
A125: 119 | B125: 2020年内街小巷工程费用 | C125: 新建 | D125: 市政基础设施 | E125: 区公用事业管理中心 | G125: 2020 | J125: 5000 | L125: 5000 | M125: 2500 | N125: 2500
A126: 120 | B126: 2020年内街小巷工程前期费用 | C126: 新建 | D126: 市政基础设施 | E126: 区公用事业管理中心 | G126: 2020 | J126: 500 | L126: 500 | M126: 100 | N126: 100
A127: 121 | B127: 2020年度惠阳城区11座市政桥梁常规定期检测 | C127: 新建 | D127: 市政基础设施 | E127: 区公用事业管理中心 | G127: 2020 | I127: 叶挺桥、大埔桥等共11座桥梁常规定期检查 | J127: 12 | K127: 叶挺桥、大埔桥等共11座桥梁常规定期检查 | L127: 12 | M127: 10 | N127: 10
A128: 122 | B128: 金惠大桥结构定期检测 | C128: 新建 | D128: 市政基础设施 | E128: 区公用事业管理中心 | G128: 2020 | I128: 检测内容桥梁承载能力评定---全桥外观检查及荷载试验 | J128: 48 | K128: 检测内容桥梁承载能力评定---全桥外观检查及荷载试验 | L128: 48 | M128: 20 | N128: 20
A129: 123 | B129: 横岭一桥结构定期检测 | C129: 新建 | D129: 市政基础设施 | E129: 区公用事业管理中心 | G129: 2020 | I129: 检测内容桥梁承载能力评定---全桥外观检查及荷载试验 | J129: 30 | K129: 检测内容桥梁承载能力评定---全桥外观检查及荷载试验 | L129: 30 | M129: 20 | N129: 20
A130: 124 | B130: 淡水铁桥结构定期检测 | C130: 新建 | D130: 市政基础设施 | E130: 区公用事业管理中心 | G130: 2020 | I130: 检测内容桥梁承载能力评定---全桥外观检查及荷载试验 | J130: 26 | K130: 检测内容桥梁承载能力评定---全桥外观检查及荷载试验 | L130: 26 | M130: 10 | N130: 10
A131: 125 | B131: 2020年度惠阳城区桥梁维修工程 | C131: 新建 | D131: 市政基础设施 | E131: 区公用事业管理中心 | G131: 2020 | I131: 内环西路淡水河桥等桥梁防撞设施升级改造 | J131: 1000 | K131: 防撞设施升级改造 | L131: 500 | M131: 100 | N131: 100
A132: 126 | B132: PPP项目工作费用 | C132: 新建 | D132: 市政基础设施 | E132: 区公用事业管理中心 | G132: 2020 | J132: 1000 | L132: 1000 | M132: 100 | N132: 100

Sheet 区公用事业管理中心（续建）
A1: 区公用事业管理中心（续建）2020年度政府投资计划
A3: 序号 | B3: 项目名称 | C3: 建设阶段 | D3: 项目分类 | E3: 牵头责任单位 | F3: 建设单位 | G3: 项目建设起止年限 | H3: 建设地点 | I3: 项目建设内容及规模 | J3: 总投资 （万元） | K3: 2020年度工作计划 | L3: 2020年计划投资 （工程量） （万元） | M3: 2020年资金安排计划（万元） | P3: 备注
M4: 合计 | N4: 资金安排
N5: 区财政预算资金 | O5: 其它来源资金
A6: 合计 | B6: 53宗 | J6: 165861 | L6: 82462 | M6: 32440 | N6: 32190 | O6: 250
A7: 1 | B7: 惠南大道（惠阳段）路灯安装工程 | C7: 已完工 | D7: 市政基础设施 | E7: 区公用事业管理中心 | G7: 已完工 | I7: 道路全长15.1km，安装180瓦12米LED双叉路灯379套，及180瓦12米LED三头投光灯12套 | J7: 945 | M7: 20 | N7: 20 | P7: 该项工程已于2016年前完成
A8: 2 | B8: 惠阳秋长景岭公园（二期）建设工程 | C8: 已完工 | D8: 市政基础设施 | E8: 区公用事业管理中心 | G8: 已完工 | I8: 绿地面积31974.8㎡ | J8: 679 | M8: 20 | N8: 20 | P8: 该项工程已于2016年前完成
A9: 3 | B9: 惠阳环城路园林绿化工程（二标） | C9: 已完工 | D9: 市政基础设施 | E9: 区公用事业管理中心 | G9: 已完工 | I9: 全长6556米，绿化面积45487平方米 | J9: 1005 | M9: 20 | N9: 20 | P9: 该项工程已于2016年前完成
A10: 4 | B10: 金湖路工程 | C10: 已完工 | D10: 市政基础设施 | E10: 区公用事业管理中心 | G10: 已完工 | I10: 全长1390.37米,其标准断面形式为：人行道+ 车行道 +人行道 = 3m + 10m +3m = 16m | J10: 2963 | M10: 20 | N10: 20 | P10: 该项工程已于2016年前完成
A11: 5 | B11: 新桥24米路工程 | C11: 已完工 | D11: 市政基础设施 | E11: 区公用事业管理中心 | G11: 已完工 | I11: 全长1590m，路宽24m，本期先建设8米宽双幅主车道及排水设施，路面为水泥混凝土路面；给排水管长度4486 m、管径D300- D1200、采用砼及HDPE管 | J11: 1037 | M11: 20 | N11: 20 | P11: 该项工程已于2016年前完成
A12: 6 | B12: 爱民东路（内环东路—淡澳河）排水渠出水口建设工程 | C12: 已完工 | D12: 市政基础设施 | E12: 区公用事业管理中心 | G12: 已完工 | I12: 新建排水渠319米 | J12: 1140 | M12: 20 | N12: 20 | P12: 该项工程已于2016年前完成
A13: 7 | B13: 爱民中路建设工程 | C13: 已完工 | D13: 市政基础设施 | E13: 区公用事业管理中心 | G13: 已完工 | I13: 路长540米，规划全宽42米 | J13: 784 | M13: 20 | N13: 20 | P13: 该项工程已于2016年前完成
A14: 8 | B14: 秋长景岭公园（一期）工程 | C14: 已完工 | D14: 市政基础设施 | E14: 区公用事业管理中心 | G14: 已完工 | I14: 沥青混凝土2388㎡，铺环保砖1484㎡ | J14: 122 | M14: 20 | N14: 20 | P14: 该项工程已于2016年前完成
A15: 9 | B15: 凤凰山公园登山道工程 | C15: 已完工 | D15: 市政基础设施 | E15: 区公用事业管理中心 | G15: 已完工 | I15: 路长1553米，宽2.4-3米 | J15: 154 | M15: 20 | N15: 20 | P15: 该项工程已于2016年前完成
A16: 10 | B16: 叶挺森林公园绿道防护设施建设工程 | C16: 已完工 | D16: 市政基础设施 | E16: 区公用事业管理中心 | G16: 已完工 | I16: 约11千米安全防护栏 | J16: 521 | M16: 20 | N16: 20 | P16: 该项工程已于2016年前完成
A17: 11 | B17: G205国道新圩段镇隆段沿线路灯改造工程 | C17: 已完工 | D17: 市政基础设施 | E17: 区公用事业管理中心 | G17: 已完工 | I17: 新圩至镇隆段总长为21.8KM，安装1290盏路灯 | J17: 553 | M17: 20 | N17: 20 | P17: 该项工程已于2017年前完成
A18: 12 | B18: 体育文化公园一期河道护坡工程 | C18: 已完工 | D18: 市政基础设施 | E18: 区公用事业管理中心 | G18: 2017-2018 | H18: 淡水 | I18: 550米河道护坡 | J18: 350 | M18: 20 | N18: 20 | P18: 该项工程已于2018年前完成
A19: 13 | B19: 体育文化公园（一期）改造工程 | C19: 已完工 | D19: 市政基础设施 | E19: 区公用事业管理中心 | G19: 2017-2019 | H19: 淡水 | I19: 照明、园路、绿化、停车场等改造 | J19: 450 | M19: 20 | N19: 20 | P19: 该项工程已于2018年前完成
A20: 14 | B20: 惠阳区承修四路一期工程 | C20: 已完工 | D20: 市政基础设施 | E20: 区公用事业管理中心 | G20: 已完工 | H20: 淡水 | I20: 路长480米，宽36米 | J20: 566 | M20: 500 | N20: 500
A21: 15 | B21: 惠州市惠大高速公路配套市政管线下穿铁路工程 | C21: 已完工 | D21: 市政基础设施 | E21: 区公用事业管理中心 | G21: 已完工 | H21: 淡水 | J21: 3892 | M21: 1000 | N21: 1000
A22: 16 | B22: 仲恺路（开城大道—长安中路）工程 | C22: 续建 | D22: 市政基础设施 | E22: 区公用事业管理中心 | F22: 惠州市建设集团建筑工程公司 | H22: 淡水 | I22: 长500米，规划红线宽60米 | J22: 584 | K22: 完工 | L22: 584 | M22: 250 | O22: 250 | P22: 大亚湾统筹资金
A23: 17 | B23: 大门埔路（经三十一路-内环东路） | C23: 续建 | D23: 市政基础设施 | E23: 区公用事业管理中心 | F23: 惠阳建筑工程总公司 | G23: 2017-2020 | H23: 淡水 | I23: 道路长2114米，道路红线32米,双向六车道,为城市主干道 | J23: 6372 | K23: 完工 | L23: 1435 | M23: 400 | N23: 400
A24: 18 | B24: 天安南路工程 | C24: 续建 | D24: 市政基础设施 | E24: 区公用事业管理中心 | F24: 广东嘉乐建筑有限公司 | G24: 2017-2020 | H24: 淡水 | I24: 长550米，规划红线宽20米 | J24: 1399 | K24: 完工 | L24: 501 | M24: 200 | N24: 200 | P24: 25条连接路项目
A25: 19 | B25: 秋溪路（外环路—经四路）工程 | C25: 续建 | D25: 市政基础设施 | E25: 区公用事业管理中心 | F25: 深圳市金源达建设集团有限公司 | G25: 2017-2020 | H25: 秋长 | I25: 道路全长约1.16公里,规划道路红线36米 | J25: 6260 | K25: 完工 | L25: 3496 | M25: 600 | N25: 600 | P25: 25条连接路项目
A26: 20 | B26: 经二路（纬一路—秋宝路）工程 | C26: 续建 | D26: 市政基础设施 | E26: 区公用事业管理中心 | F26: 广东景源建设工程有限公司 | G26: 2017-2020 | H26: 秋长 | I26: 道路全长约1.28公里,规划道路红线30米 | J26: 4443 | K26: 完工 | L26: 2092 | M26: 500 | N26: 500 | P26: 25条连接路项目
A27: 21 | B27: 云新大道（人民路--规划路段）工程 | C27: 续建 | D27: 市政基础设施 | E27: 区公用事业管理中心 | F27: 惠州大亚湾市政基础设施有限公司 | G27: 2017-2020 | H27: 淡水 | I27: 长约1570米，红线宽60米，机动车道宽24米，双向6车道 | J27: 8210 | K27: 完工 | L27: 2209 | M27: 500 | N27: 500 | P27: 25条连接路项目
A28: 22 | B28: 康寿路工程（康寿路（荔园西路—规划路）工程） | C28: 续建 | D28: 市政基础设施 | E28: 区公用事业管理中心 | F28: 深圳市绿城建筑有限公司 | G28: 2017-2020 | H28: 淡水 | I28: 道路长631米，道路红线24米，双向两车道，为城市支路 | J28: 1535 | K28: 完工 | L28: 296 | M28: 100 | N28: 100 | P28: 25条连接路项目
A29: 23 | B29: 康寿路工程（康寿路（北环路—规划路）工程） | C29: 续建 | D29: 市政基础设施 | E29: 区公用事业管理中心 | G29: 2017-2020 | H29: 淡水
A30: 24 | B30: 荔兴西路工程 | C30: 续建 | D30: 市政基础设施 | E30: 区公用事业管理中心 | F30: 广州市黄埔区市政建设有限公司 | G30: 2017-2020 | H30: 淡水 | I30: 长666.112米，规划红线宽30米，设计为双向4车道 | J30: 2718 | K30: 启动道路、排水、绿化、电气工程建设 | L30: 259 | M30: 50 | N30: 50 | P30: 25条连接路项目
A31: 25 | B31: 三和医院西侧规划路（金惠大道—云新大道） | C31: 续建 | D31: 市政基础设施 | E31: 区公用事业管理中心 | F31: 广东安洲建设有限公司 | G31: 2017-2020 | H31: 淡水 | I31: 道路长380米，规划红线宽24米 | J31: 949 | K31: 完工 | L31: 570 | M31: 150 | N31: 150 | P31: 25条连接路项目
A32: 26 | B32: 内环路北段（秋宝路至横岭二桥）工程（连接路） | C32: 续建 | D32: 市政基础设施 | E32: 区公用事业管理中心 | F32: 福建华建工程建设有限公司 | G32: 2017-2020 | H32: 秋长 | I32: 道路长720米，规划红线宽60米 | J32: 4253 | K32: 通车 | L32: 2280 | M32: 200 | N32: 200 | P32: 25条连接路项目
A33: 27 | B33: 金惠大道延长线（幸福里段）建设工程 | C33: 续建 | D33: 市政基础设施 | E33: 区公用事业管理中心 | F33: 广东嘉乐建筑有限公司 | G33: 2018-2020 | H33: 淡水 | I33: 道路长520米,宽24米 | J33: 2901 | K33: 完工 | L33: 1862 | M33: 200 | N33: 200 | P33: 25条连接路项目
A34: 28 | B34: 凤凰山路（荔兴路～风情大道） | C34: 续建 | D34: 市政基础设施 | E34: 区公用事业管理中心 | F34: 深圳市澎之湃工程有限公司 | G34: 2018-2020 | H34: 淡水 | I34: 规划宽24米，长330米，雨水3.0*2.0，埋深3.8米；污水DN400，埋深2米 | J34: 1594 | K34: 启动道路、排水、绿化、电气工程建设 | L34: 405 | M34: 30 | N34: 30
A35: 29 | B35: 澜山名苑小学东侧规划路（仲恺西路—龙海一路） | C35: 续建 | D35: 市政基础设施 | E35: 区公用事业管理中心 | F35: 深圳市润源建筑工程有限公司 | G35: 2018-2020 | H35: 淡水 | I35: 规划宽24米，长460米 | J35: 1599 | K35: 完工 | L35: 443 | M35: 100 | N35: 100
A36: 30 | B36: 体育文化公园升级改造工程 | C36: 续建 | D36: 市政基础设施 | E36: 区公用事业管理中心 | G36: 2019-2020 | H36: 淡水 | I36: 升级改造 | J36: 2200 | K36: 完工 | L36: 1719 | M36: 500 | N36: 500
A37: 31 | B37: 滨河北路东段工程 | C37: 续建 | D37: 市政基础设施 | E37: 区公用事业管理中心 | G37: 2019-2021 | H37: 淡水 | I37: 道路长500米，规划宽32米 | J37: 3195 | K37: 启动道路、排水、绿化、电气工程建设 | L37: 600 | M37: 100 | N37: 100 | P37: 25条连接路项目
A38: 32 | B38: 滨河北路北段及河道边坡支护工程 | C38: 续建 | D38: 市政基础设施 | E38: 区公用事业管理中心 | F38: 广州市第二市政工程有限公司 | G38: 2019-2021 | H38: 秋长 | I38: 道路长1301米，规划红线宽42米 | J38: 10932 | K38: 完工 | L38: 5300 | M38: 900 | N38: 900 | P38: 25条连接路项目
A39: 33 | B39: 东方新城东侧规划路 | C39: 续建 | D39: 市政基础设施 | E39: 区公用事业管理中心 | F39: 广东电白建设集团有限公司 | G39: 2019-2021 | H39: 秋长 | I39: 道路长1301米，规划红线宽20米 | J39: 6614 | K39: 通车 | L39: 3300 | M39: 500 | N39: 500
A40: 34 | B40: 金秋大道南段工程 | C40: 续建 | D40: 市政基础设施 | E40: 区公用事业管理中心 | G40: 2019-2021 | H40: 淡水、秋长 | I40: 道路长1176.752米，规划红线宽30米 | J40: 7151 | K40: 启动道路、排水、绿化、电气工程建设 | L40: 4163 | M40: 500 | N40: 500 | P40: 25条连接路项目
A41: 35 | B41: 亚来路工程 | C41: 续建 | D41: 市政基础设施 | E41: 区公用事业管理中心 | G41: 2019-2021 | H41: 秋长 | I41: 道路长733米，宽30米 | J41: 3354 | K41: 通车 | L41: 2600 | M41: 400 | N41: 400 | P41: 25条连接路项目
A42: 36 | B42: 规划路（永兴路至尧岗路） | C42: 续建 | D42: 市政基础设施 | E42: 区公用事业管理中心 | F42: 深圳金瑞建设集团有限公司 | G42: 2019-2021 | H42: 淡水 | I42: 道路全长642,道路规划红线宽18米. | J42: 3110 | K42: 启动道路、排水、绿化、电气工程建设 | L42: 1648 | M42: 400 | N42: 400 | P42: 25条连接路项目
A43: 37 | B43: 大埔南路（中山路—爱民东路） | C43: 续建 | D43: 市政基础设施 | E43: 区公用事业管理中心 | G43: 2019-2021 | H43: 淡水 | I43: 规划宽16米，长680米 | J43: 2595 | K43: 通车 | L43: 1816 | M43: 400 | N43: 400
A44: 38 | B44: 马蹄沥截污管网建设工程 | C44: 续建 | D44: 市政基础设施 | E44: 区公用事业管理中心 | G44: 2019-2021 | H44: 秋长 | I44: 设DN400～DN600排污管道长3404米，钢筋混凝土排水箱涵4*2.5m长962米 | J44: 10732 | K44: 完工 | L44: 7500 | M44: 1000 | N44: 1000
A45: 39 | B45: 府东北街北段 | C45: 续建 | D45: 市政基础设施 | E45: 区公用事业管理中心 | G45: 2019-2020 | H45: 秋长 | I45: 道路长226米，规划宽24米 | J45: 1365 | K45: 通车 | L45: 956 | M45: 150 | N45: 150
A46: 40 | B46: 滨河北路北段水利工程 | C46: 续建 | D46: 市政基础设施 | E46: 区公用事业管理中心 | G46: 2019-2021 | H46: 秋长 | I46: 河道整治 | J46: 5694 | K46: 启动水利程建设 | L46: 2277 | M46: 400 | N46: 400
A47: 41 | B47: 东方新城东侧规划路水利工程 | C47: 续建 | D47: 市政基础设施 | E47: 区公用事业管理中心 | G47: 2019-2021 | H47: 秋长 | I47: 河道整治 | J47: 5815 | K47: 启动水利程建设 | L47: 2326 | M47: 400 | N47: 400
A48: 42 | B48: 新九路 | C48: 续建 | D48: 市政基础设施 | E48: 区公用事业管理中心 | G48: 2020-2022 | H48: 秋长 | I48: 长1000米，宽30米 | J48: 9760 | K48: 启动道路、排水、绿化、电气工程建设 | L48: 5856 | M48: 500 | N48: 500
A49: 43 | B49: 兴湖路（白云路至龙海一路）供电迁改工程 | C49: 续建 | D49: 市政基础设施 | E49: 区公用事业管理中心 | G49: 2019-2020 | H49: 淡水 | I49: 10千伏南湖线土湖派出所支线#4-#19架空线路及T接用户 | J49: 357 | K49: 电网迁改 | L49: 357 | M49: 50 | N49: 50
A50: 44 | B50: 石桥幼儿园门前道路供电迁改工程 | C50: 续建 | D50: 市政基础设施 | E50: 区公用事业管理中心 | G50: 2019-2020 | H50: 淡水 | I50: 变压器迁改 | J50: 87 | K50: 电网迁改 | L50: 90 | M50: 30 | N50: 30
A51: 45 | B51: 马蹄沥截污管网道路供电迁改工程 | C51: 续建 | D51: 市政基础设施 | E51: 区公用事业管理中心 | G51: 2019-2020 | H51: 淡水 | I51: 10千伏荣华线F28主干＃3塔-＃21杆段架空线及相关电气设备 | J51: 240 | K51: 电网迁改 | L51: 240 | M51: 30 | N51: 30
A52: 46 | B52: 康寿路供电迁改工程 | C52: 续建 | D52: 市政基础设施 | E52: 区公用事业管理中心 | G52: 2019-2020 | H52: 淡水 | I52: 220千伏秋长站10千伏工区线汽库公用电缆分接箱引出的恒力支线及煤球厂支线两端电缆 | J52: 50 | K52: 电网迁改 | L52: 50 | M52: 10 | N52: 10
A53: 47 | B53: 经二路（纬一路至秋宝路）供电迁改工程 | C53: 续建 | D53: 市政基础设施 | E53: 区公用事业管理中心 | G53: 2019-2020 | H53: 淡水 | I53: 110千伏新塘站10千伏方屋线鸿泰鹿后公用开关站至线路末端电缆及设备 | J53: 150 | K53: 电网迁改 | L53: 150 | M53: 10 | N53: 10
A54: 48 | B54: 澜山名苑小学东侧规划路供电迁改工程 | C54: 续建 | D54: 市政基础设施 | E54: 区公用事业管理中心 | G54: 2019-2020 | H54: 淡水 | I54: 10千伏龙海线F14龙海一路＃1、＃2户外开关箱及相关电气设备 | J54: 82 | K54: 电网迁改 | L54: 82 | M54: 20 | N54: 20
A55: 49 | B55: 惠阳区城区排水管网专项排查 | C55: 续建 | D55: 市政基础设施 | E55: 区公用事业管理中心 | G55: 2019-2020 | H55: 惠阳城区 | J55: 3500 | K55: 排水管网专项排查 | L55: 2100 | M55: 400 | N55: 400
A56: 50 | B56: 2020年之前重点项目前期费用 | C56: 续建 | D56: 市政基础设施 | E56: 区公用事业管理中心 | J56: 3500 | L56: 1000 | M56: 100 | N56: 100
A57: 51 | B57: 2020年之前内街小巷工程费用 | C57: 续建 | D57: 市政基础设施 | E57: 区公用事业管理中心 | J57: 6400 | L57: 1500 | M57: 500 | N57: 500
A58: 52 | B58: 2020年之前内街小巷工程前期费用 | C58: 续建 | D58: 市政基础设施 | E58: 区公用事业管理中心 | J58: 1000 | L58: 400 | M58: 100 | N58: 100
A59: 53 | B59: PPP项目付费项目 | C59: 续建 | D59: 市政基础设施 | E59: 区公用事业管理中心 | J59: 20000 | L59: 20000 | M59: 20000 | N59: 20000

Sheet 区代建项目管理中心
A1: 区代建项目管理中心2020年度政府投资计划
A3: 序号 | B3: 项目名称 | C3: 建设阶段 | D3: 项目分类 | E3: 牵头责任单位 | F3: 建设单位 | G3: 项目建设起止年限 | H3: 建设地点 | I3: 项目建设内容及规模 | J3: 总投资 （万元） | K3: 2020年度工作计划 | L3: 2020年计划投资 （工程量） （万元） | M3: 2020年资金安排计划（万元） | P3: 备注
M4: 合计 | N4: 资金安排
N5: 区财政预算资金 | O5: 其它来源资金
A6: 合计 | B6: 2宗 | J6: 133822 | L6: 1700 | M6: 1370 | N6: 1370
A7: 1 | B7: 惠阳城区草洋南部片区排涝站建设工程 | C7: 新建 | D7: 社会事业 | E7: 区代建项目管理中心 | F7: 区农水局 | G7: 2019-2021 | H7: 淡水 | I7: 新建排水泵站一座，装5台1000ZQ-70型潜水轴流泵，总装机1775kw，设计流量16.40m3/s，调蓄池8500m3，估算投资约3821.77万元 | J7: 3822 | K7: 完成前期手续，进行施工单位招标。 | L7: 700 | M7: =SUM(N7:O7) -> 700 | N7: 700
A8: 2 | B8: 惠州市惠阳区南站新城片区安置房工程（首期） | C8: 新建 | D8: 社会事业 | E8: 区代建项目管理中心 | F8: 区代建项目管理中心 | G8: 2020-2024 | H8: 淡水 | I8: 建设用地规划总面积54581平方米，总建筑面积为250835.25㎡。项目建设内容：12栋高层住宅楼，幼儿园、物业管理用房、社区服务站、文化活动站、社区卫生服务中心、门诊部、垃圾收集站、配电网配电站、社区体育活动场地等设施。 | J8: 130000 | K8: 完成方案报批、规划报建、环评、地灾评估、地勘施工及报告编制、初步设计报批，开展施工图设计。 | L8: 1000 | M8: =SUM(N8:O8) -> 670 | N8: 670

Sheet 区代建项目管理中心（续建）
A1: 区代建项目管理中心（续建）2020年度政府投资计划
A3: 序号 | B3: 项目名称 | C3: 建设阶段 | D3: 项目分类 | E3: 牵头责任单位 | F3: 建设单位 | G3: 项目建设起止年限 | H3: 建设地点 | I3: 项目建设内容及规模 | J3: 总投资 （万元） | K3: 2020年度工作计划 | L3: 2020年计划投资 （工程量） （万元） | M3: 2020年资金安排计划（万元） | P3: 备注
M4: 合计 | N4: 资金安排
N5: 区财政预算资金 | O5: 其它来源资金
A6: 合计 | B6: 11宗 | J6: 179205 | L6: 21983 | M6: 12580 | N6: 12580
A7: 1 | B7: 惠阳区行政服务中心“一门通办”升级改造工程 | C7: 续建 | D7: 公共服务 | E7: 区代建项目管理中心 | F7: 区行政服务中心 | G7: 2018-2020 | H7: 淡水 | I7: 对惠阳区行政服务中心A座和B座相关楼层进行升级改造，调整政务大厅布局、综合窗口设置，主要包括土建、装修、水电、消防等工程，改造面积5642平方米。 | J7: 2073 | K7: 装修及消防检修收尾工作。 | L7: 500 | M7: =SUM(N7:O7) -> 500 | N7: 500
A8: 2 | B8: 惠阳区平潭消防站 | C8: 续建 | D8: 社会事业 | E8: 区代建项目管理中心 | F8: 惠州市消防支队惠阳区大队 | G8: 2019-2021 | H8: 平潭 | I8: 按城市一级消防站标准建设，占地面积约5000平方米，建筑面积约4000平方米。 | J8: 2200 | K8: 完成前期手续，进行施工招标工作。 | L8: 1000 | M8: 700 | N8: 700
A9: 3 | B9: 惠阳区体育文化公园游泳池改造升级工程 | C9: 续建 | D9: 社会事业 | E9: 区代建项目管理中心 | F9: 区文广旅体局 | G9: 2018-2021 | H9: 淡水 | I9: 惠阳区体育文化公园游泳池，惠阳区体育文化公园二期，将现有的标准池和成人池搭建钢结构风雨棚；新建室内恒温池及配套设施；新建功能房和办公用房；新建泳池机电房及增加相关游泳设备系统。 | J9: 1328 | K9: 根据区政府工作会议纪要（惠阳府纪[2019]71号）精神，由于按招标控制价提出的设计方案标准低，未达到我区建设一流城市高质量发展区的要求且无法按程序通过相关审核，为确保国有资产的有效投入和长久使用，高质量改造升级好体育文化公园游泳池，切实满足群众需求，依法终止与该工程现中标工程总承包（EPC）单位的《建设项目工程总承包》及相关约定，并按程序依法对该项目开展后续流程及重启工作。 | L9: 1328 | M9: 1000 | N9: 1000
A10: 4 | B10: 惠阳区人民武装部射击场（馆） | C10: 续建 | D10: 社会事业 | E10: 区代建项目管理中心 | F10: 区人武部 | G10: 2018-2020 | H10: 淡水 | I10: 射击场占地面积共19862平方米，可用建设面积4549平方米，建设内容包括一栋综合楼、射击训练靶场及室外配套工程。 | J10: 2808 | K10: 完成工程建设的前期工作。 | L10: 200 | M10: 100 | N10: 100
A11: 5 | B11: 惠阳区残疾人康复中心附属楼工程 | C11: 续建 | D11: 社会事业 | E11: 区代建项目管理中心 | F11: 惠阳区残疾人联合会 | G11: 2019-2020 | H11: 淡水 | I11: 本项目位于区残疾人康复中心大院内，用地面积171.76平方米，总建筑面积483.57平方米。 | J11: 220 | K11: 完成装修及验收工作。 | L11: 100 | M11: 100 | N11: 100
A12: 6 | B12: 惠阳区妇幼保健院迁建工程（一期） | C12: 续建 | D12: 社会事业 | E12: 区代建项目管理中心 | F12: 惠阳区妇幼保健院 | G12: 2017-2020 | H12: 三和 | I12: 项目位于惠阳区三和街道办事处铁门扇村寨背地段，占地面积7783平方米，总建筑面积29060平方米，拟建一栋地上12层综合楼、一栋地上6层辅助楼，包括地上3层裙楼、地下1层停车及配套用房，以及地上1层临时供氧中心。项目总投资额为2.7亿元人民币，其中土建、配套工程投资18938.88万元，设备投资8061.12万元。本项目将按“二级甲等医院”标准建设。 | J12: 27000 | K12: 完成一般土建工程竣工验收；医疗专业工程装修及设备安装。 | L12: 14000 | M12: 7350 | N12: 7350
A13: 7 | B13: 淡水河综合整合项目第二期工程 | C13: 续建 | D13: 社会事业 | E13: 区代建项目管理中心 | F13: 惠州市粤升实业有限公司、惠州市联合胜投资有限公司 | G13: 2012-2019 | H13: 淡水 | I13: 上游至淡水河的内环路桥，下游至糖厂。河道长约7.33公里。整治水利防洪、水环境治理及配套设施建设。 | J13: 138600 | K13: 建设一标一号路及三标六号路。 | L13: 3000 | M13: 1150 | N13: 1150
A14: 8 | B14: 完工项目资金安排 | C14: 移交使用 | D14: 社会事业 | E14: 区代建项目管理中心 | F14: 惠州市惠阳区人民法院、惠州市惠阳区中医院、惠州市惠阳区纪委 | I14: 惠州市惠阳区人民法院审判法庭项目施工及监理单位质保金280万元；惠州市惠阳区中医院旧业务用房改造工程施工单位质保金、监理单位尾款50万元；惠阳区淡水污水处理厂项目一期（BOT）5万元；惠阳区纪委、监察委业务用房改造工程20万元。 | K14: 惠州市惠阳区人民法院审判法庭项目施工及监理单位质保金280万元；惠州市惠阳区中医院旧业务用房改造工程施工单位质保金、监理单位尾款50万元；惠阳区淡水污水处理厂项目一期（BOT）5万元；惠阳区纪委、监察委业务用房改造工程20万元。 | L14: 355 | M14: 280 | N14: 280
A15: 9 | B15: 惠州市公安局惠阳区分局古屋派出所业务用房 | C15: 续建 | D15: 社会事业 | E15: 区代建项目管理中心 | F15: 惠州市公安局惠阳区分局古屋派出所 | G15: 2018-2019 | H15: 淡水 | I15: 项目位于惠州市惠阳区平龙公路旁（惠阳区白云六路惠阳一中实验学校斜对面）。规划用地面积1742m2，其中拟建一栋业务用房占地面积527.79 m2，主体建筑地上为3层，无地下层，总建筑面积约为1550 m2。 | J15: 882 | K15: 竣工验收备案。 | L15: 200 | M15: 200 | N15: 200
A16: 10 | B16: 惠州市公安局惠阳区分局永湖派出所业务用房 | C16: 续建 | D16: 社会事业 | E16: 区代建项目管理中心 | F16: 惠州市公安局惠阳区分局永湖派出所 | G16: 2019-2021 | H16: 永湖 | I16: 规划用地面积2700平方米，总建筑面积4484.70平方米，工程内容包括主题工程和配套附属工程。 | J16: 2372 | K16: 完成主体工程。 | L16: 1000 | M16: 1000 | N16: 1000
A17: 11 | B17: 惠州市公安局惠阳区分局秋长派出所业务用房 | C17: 续建 | D17: 社会事业 | E17: 区代建项目管理中心 | F17: 惠州市公安局惠阳区分局秋长派出所 | G17: 2019-2021 | H17: 秋长 | I17: 规划用地面积8198平方米，拟建设业务用房3137.05平方米。 | J17: 1721 | K17: 完成工程规划许可证办理。 | L17: 300 | M17: 200 | N17: 200

Sheet 区政务数据管理局（政务信息化项目）
A1: 区政务数据管理局（政务信息化项目）2020年度政府投资计划
A3: 序号 | B3: 项目名称 | C3: 建设阶段 | D3: 项目分类 | E3: 牵头责任单位 | F3: 建设单位 | G3: 项目建设起止年限 | H3: 建设地点 | I3: 项目建设内容及规模 | J3: 总投资 （万元） | K3: 2020年度工作计划 | L3: 2020年计划投资 （工程量） （万元） | M3: 2020年资金安排计划（万元） | P3: 备注
M4: 合计 | N4: 资金安排
N5: 区财政预算资金 | O5: 其它来源资金
A6: 合计 | B6: 8宗 | J6: 7619 | L6: 5974 | M6: 5974 | N6: 5974
A7: 1 | B7: 惠阳区一门式一网式全流程网上受理审批平台升级拓展项目 | C7: 拟建 | D7: 公共服务 | E7: 区政务服务数据管理局 | F7: 区政务服务数据管理局 | G7: 2020.01-2020.12 | H7: 区行政服务中心A栋 | I7: 完成惠阳一门通办平台升级，包括拓展惠阳区一门通办微信公众号、建设电子材料应用系统；完成依申请类事项梳理和“一窗通办”上线配置；开展省统一身份认证平台接入改造工作，开展“最多跑一次”百项高频事项梳理优化，开展统一办件数据和物流服务接入工作；依托现有数据开展数据分析及应用；依据区各部门权责清单，梳理建立权责事项与数据资源的关联关系，明确区部门履行权责产生的数据资源和所需的数据资源，形成全区政务信息资源目录与信息共享目录；并提供2020年网上政务服务能力考核支撑服务。 | J7: 480 | K7: 完成惠阳区一门式一网式全流程网上受理审批平台升级拓展项目的采购、成果交付及验收工作 | L7: 480 | M7: =SUM(N7:O7) -> 480 | N7: 480 | P7: 1.《广东省人民政府办公厅关于印好2019年全省一体化在线政务服务平台服务能力提升工作方案的通知》（粤办函﹝2019﹞253号） 2.《惠阳区政务服务推行“一门通办、集成服务”工作方案》（惠阳府办函﹝2017﹞91号） 3.《加快推进“一门通办、集成服务”政务服务改革实施方案（试行）》（惠阳府办函﹝2018﹞111号）
A8: 2 | B8: 惠阳区应急管理局应急指挥中心系统整合 | C8: 拟建 | D8: 公共服务 | E8: 惠阳区应急管理局 | F8: 惠阳区应急管理局 | G8: 2020.01-2020.12 | H8: 惠阳区应急管理局一楼指挥大厅 | I8: 1、接入区直有关部门视频系统，约5个；2、将已有会商系统、视频系统整合。 | J8: 525 | K8: 完成接入和整合 | L8: 525 | M8: 525 | N8: 525 | P8: 《关于印发进一步改善医疗服务行动计划(2018-2020年)的通知》、《关于开展互联网+院前医疗急救试点工作的通知》（国卫办医函〔2019〕588号）
A9: 3 | B9: 惠阳区智能急救平台项目 | C9: 2020年 | D9: 社会事业 | E9: 区卫生健康局 | F9: 区卫生健康局 | G9: 2020.01-2020.12 | H9: 区直各医院，各镇卫生院、社区卫生服务中心 | I9: 通过建设智能急救平台，以急救为核心，结合人工智能、5G通讯、互联网云服务等技术，将医疗急救核心工作从院内延伸至院前，在急救网络体系中实现现场救援、途中诊断与院内抢救的无缝链接，并根据急救需要实现惠阳区内多家医院之间联动，协同各医院的急救资源，从最大程度上提高急救效率和资源利用率，有效地缩短抢救时间，构建快速、高效的急危重症医疗救治体系 | J9: 1709 | K9: 在区直各医院，各镇卫生院、社区卫生服务中心开展智能急救平台项目建设 | L9: 1709 | M9: 1709 | N9: 1709 | P9: 《关于促进“互联网+医疗服务”发展的意见》（国办发〔2018〕26号）
A10: 4 | B10: 惠阳区互联网医院平台项目建设 | C10: 2020年 | D10: 社会事业 | E10: 区卫生健康局 | F10: 区卫生健康局 | G10: 2020.01-2020.12 | H10: 惠州市第六人民医院 | I10: 为切实加强我区医疗服务能力和水平，全面推动我区互联网医院的建设，在惠州市第六人民医院先行作为建设互联网医院平台的试点医疗机构进行建设，实现线上线下联动诊疗的全新就医模式，改善群众就医体验，让群众在家门口能享受优质医疗服务 | J10: 211 | K10: 在惠州市第六人民医院先行作为建设互联网医院平台的试点医疗机构进行建设 | L10: 211 | M10: 211 | N10: 211 | P10: 《广东省应急管理信息化地市建设任务书（2019）》《惠州市应急管理信息化建设规划（2019-2022年）实施方案》
A11: 5 | B11: 天网工程后端平台系统 | C11: 方案设计 | D11: 公共服务 | E11: 区公安分局 | F11: 未招标 | G11: 2019-2022 | H11: 惠阳区公安分局 | I11: 为进一步完善社会治安立体化防控体系建设，遵循《惠阳区视频监控全覆盖工程（天网工程）建设实施方案》的相关要求，需扩容并完善现有平台。建设要求进行二、三类视频点的联网接入，并全面推进视频监控系统建设联网综合应用，充分挖掘和提升视频监控在指挥处置、治安防控、侦查破案、社会管理等实战应用中的综合效能，辅助公安机关在动态化社会治安防控的主动权、切实控制刑事犯罪的高发态势，有效应对突发事件和非传统安全的威胁。项目总价2535万元，2019年支付38万元设计费用，2020年支付70%，即1748万元，2021年支付25%尾款即624万元，2023年支付5%即125万元。 | J11: 2535 | K11: 1.第一季度招标建设，签订合同 2.第二、三季度开始施工 3.第四季度完工初验，进入试运行，视情况是否终验 | L11: 1748 | M11: 1748 | N11: 1748 | P11: 1.交通运输部关于印发《数字交通发展规划纲要》的通知 2.惠州市交通运输局关于贯彻落实《数字交通发展规划纲要》的通知
A12: 6 | B12: 合成作战指挥中心 | C12: 方案设计 | D12: 公共服务 | E12: 区公安分局 | F12: 未招标 | G12: 2019-2023 | H12: 惠阳区 | I12: 建设惠阳区公安分局合成作战指挥中心。建设工作主要搭建一体化合成作战平台系统。该系统由指挥调度平台、实战应用平台、数据中心、大屏显示系统、人脸考勤机系统。2019年只需支付方案设计费16.5万元，土建20%款项约80万元，共96.5万元，2020年土建、家具、消防、空调等验收，信息化试运行，共计支付1090万元，261.25万元在2021年支付，剩余52.25万元质保金在2023年质保期满后支付。 | J12: 1500 | K12: 1.第一季度招标建设，签订合同 2.第二、三季度开始施工 3.第四季度完工初验，进入试运行，视情况是否终验 | L12: 1102 | M12: 1102 | N12: 1102 | P12: 1.交通运输部关于印发《数字交通发展规划纲要》的通知 2.惠州市交通运输局关于贯彻落实《数字交通发展规划纲要》的通知
A13: 7 | B13: 非现场监测点建设 | C13: 拟建 | D13: 公共服务 | E13: 交通运输局 | F13: 交通运输局 | G13: 2020-2021 | H13: 惠阳 | I13: 在重型车辆较集中的公路设置监测点 | J13: 280 | K13: 项目完成 | L13: 100 | M13: 100 | N13: 100 | P13: 《惠阳区视频监控全覆盖工程（天网工程）建设实施方案》、《广东公安智慧新警务总体规划 （2018-2020） 》、省厅《智慧新警务八大创新应用攻坚方案》、省厅《智慧新警务四大赋能工程攻坚方案》
A14: 8 | B14: 智慧交通建设（TOCC） | C14: 拟建 | D14: 公共服务 | E14: 交通运输局 | F14: 交通运输局 | G14: 2020-2022 | H14: 惠阳 | I14: 建设重点包括：一是规划基建板块；二是运输管理板块；三是综合执法板块；四是安全应急板块。 | J14: 380 | K14: 项目完成 | L14: 100 | M14: 100 | N14: 100 | P14: 《广东公安智慧新警务总体规划 （2018-2020） 》、省厅《智慧新警务八大创新应用攻坚方案》、省厅《智慧新警务四大赋能工程攻坚方案》

Sheet 区公安分局
A1: 区公安分局 2020年度政府投资计划
A3: 序号 | B3: 项目名称 | C3: 建设阶段 | D3: 项目分类 | E3: 牵头责任单位 | F3: 建设单位 | G3: 项目建设起止年限 | H3: 建设地点 | I3: 项目建设内容及规模 | J3: 总投资 （万元） | K3: 2020年度工作计划 | L3: 2020年计划投资 （工程量） （万元） | M3: 2020年资金安排计划（万元） | P3: 备注
M4: 合计 | N4: 资金安排
N5: 区财政预算资金 | O5: 其它来源资金
A6: 合计 | B6: 1宗 | J6: 1500 | L6: 1500 | M6: 1500 | N6: 1500
A7: 1 | B7: 交通设施建设项目 | C7: 新建 | D7: 社会事业 | E7: 区公安分局 | F7: 区交警大队 | G7: 2020 | H7: 惠阳区 | I7: 增高交通灯控、日常灯控设备维护、增高交通标志、标线等。 | J7: 1500 | K7: 增高交通灯控、日常灯控设备维护、增高交通标志、标线等。 | L7: 1500 | M7: =SUM(N7:O7) -> 1500 | N7: 1500

Sheet 区公安分局（续建）
A1: 区公安分局（续建）2020年度政府投资计划
A3: 序号 | B3: 项目名称 | C3: 建设阶段 | D3: 项目分类 | E3: 牵头责任单位 | F3: 建设单位 | G3: 项目建设起止年限 | H3: 建设地点 | I3: 项目建设内容及规模 | J3: 总投资 （万元） | K3: 2020年度工作计划 | L3: 2020年计划投资 （工程量） （万元） | M3: 2020年资金安排计划（万元） | P3: 备注
M4: 合计 | N4: 资金安排
N5: 区财政预算资金 | O5: 其它来源资金
A6: 合计 | B6: 3宗 | J6: 2588 | L6: 2572 | M6: 2564 | N6: 2564
A7: 1 | B7: 惠阳区公安分局智能执法办案中心 | C7: 基础工程造价预算正由区政府部门核算 | D7: 社会事业 | E7: 惠阳区公安分局 | F7: 惠阳区公安分局 | G7: 2019年至2021年 | H7: 惠阳区强制隔离戒毒所 | I7: 办案中心建设面积约为2800平方米，设置办案中心、案管中心、监督中心及涉案财物管理中心，用于每年全区所有刑事案件、部分行政案件约为3000多名违法犯罪嫌疑人员讯的（询）问及其相关案件管理、涉案财物管理等。经预算，建设资金约为2500万元。 | J7: 1500 | K7: 1、完成执法办案中心基础改造工程。 2、完成一楼办案区信息化建设工程 。 | L7: 1500 | M7: =SUM(N7:O7) -> 1492 | N7: 1492 | P7: 惠阳财预[2019]3号关于批复2019年度部门预算的通知
A8: 2 | B8: 视频督查数字化升级改造 | C8: 信息化设计阶段 | D8: 社会事业 | E8: 区公安分局 | F8: 区公安分局 | G8: 2019-2020 | H8: 惠阳区各公安机关办公场所 | I8: 前公安办公场所的督察系统视频，正在使用的266路视频为模拟图像，技术较为落后，图像不清晰，现计划升级为数字图像，提高视频图像清晰度，保障督察工作顺利进行。另为进一步加强视频督察工作，对内部监控进行补点，共补300路视频，消除视频盲区，进一步规范督察工作。 | J8: 200 | K8: 1.第一季度继续完善建设，争取进入试运行状态。 2.第二季度项目试运行。 3.第三季度完成验收。 | L8: 187 | M8: =SUM(N8:O8) -> 187 | N8: 187 | P8: 惠阳财预[2019]3号关于批复2019年度部门预算的通知
A9: 3 | B9: 区应急保障集群通信系统建设项目（二期） | C9: 信息化设计阶段 | D9: 社会事业 | E9: 区公安分局 | F9: 区公安分局 | G9: 2019-2020 | H9: 加建6个基站（沙田2个、秋南1、秋长2、永湖） | I9: 我局已完成了应急指挥系统建设，因山竹台风发挥了不可替代的作用，区三防及镇（街）需用我局的系统，为加强保障，建议启动2期建设，需再次加建6个基站（沙田2个、秋南1、秋长2、永湖），在现有的基站基础上增加33套信道机、100台车台，直放站6套及其它配套设施。 | J9: 888 | K9: 1.第一季度完成点位堪踏和设备到货。 2.第二季度完成设备安装进入试运行。 3.第三季度完成验收 | L9: 885 | M9: 885 | N9: 885 | P9: 2019年支付293万元

Sheet 区交通运输局
A1: 区交通运输局2020年度政府投资计划
A3: 序号 | B3: 项目名称 | C3: 建设阶段 | D3: 项目分类 | E3: 牵头责任单位 | F3: 建设单位 | G3: 项目建设起止年限 | H3: 建设地点 | I3: 项目建设内容及规模 | J3: 总投资 （万元） | K3: 2020年度工作计划 | L3: 2020年计划投资 （工程量） （万元） | M3: 2020年资金安排计划（万元） | P3: 备注
M4: 合计 | N4: 资金安排
N5: 区财政预算资金 | O5: 其它来源资金
A6: 合计 | B6: 3宗 | J6: 160018 | L6: 20750 | M6: 3000 | N6: 3000
A7: 1 | B7: 省道S356线（白云大道）淡水秋长段路面改造工程（二期） | C7: 新建 | D7: 交通基础设施 | E7: 区交通运输局 | F7: 区交通运输局 | G7: 2020-2022 | H7: 淡水街道、秋长街道 | I7: 项目全长6.3公里（马骝岭-东门桥段，白云坑桥-坑梓交界处），，按照一级公路兼城市主干道、双向六车道标准建设，建设内容包括路面工程、雨污水改造、给水工程、电力工程（仅计入过路暗管）、照明工程以及沿线交安设施等。 | J7: 47807 | K7: 完成立项审批、监理招标及施工招标工作，年内动工建设。 | L7: 7000 | M7: =N7+O7 -> 1400 | N7: 1400 | P7: 方案已报政府
A8: 2 | B8: 将军东路（X225线黄竹沥至茶园段）建设项目工程（二期） | C8: 新建 | D8: 交通基础设施 | E8: 区交通运输局 | F8: 区交通运输局 | G8: 2020-2022 | H8: 秋长街道、三和街道 | I8: 项目全长5.4公里，其中茶园-周田段2.2公里按双向6车道标准实施，黄竹沥-茶园段全线5.4公里按市政道路标准实施。 | J8: 38770 | K8: 完成立项审批、监理招标及施工招标工作，年内动工建设。 | L8: 6250 | M8: 1400 | N8: 1400 | P8: 方案已报政府
A9: 3 | B9: 新南大道（Y948线）升级改造工程 | C9: 新建 | D9: 交通基础设施 | E9: 区交通运输局 | F9: 区交通运输局 | G9: 2020-2022 | H9: 新圩镇 | I9: 项目全长约9公里，设置双向四车道，红线控制宽度为36米，按一级公路结合城市主干道标准实施。 | J9: 73441 | K9: 完成立项审批、监理招标及施工招标工作，年内动工建设。 | L9: 7500 | M9: 200 | N9: 200 | P9: 方案已报政府

Sheet 区交通运输局 （续建）
A1: 区交通运输局 （续建）2020年度政府投资计划
A3: 序号 | B3: 项目名称 | C3: 建设阶段 | D3: 项目分类 | E3: 牵头责任单位 | F3: 建设单位 | G3: 项目建设起止年限 | H3: 建设地点 | I3: 项目建设内容及规模 | J3: 总投资 （万元） | K3: 2020年度工作计划 | L3: 2020年计划投资 （工程量） （万元） | M3: 2020年资金安排计划（万元） | P3: 备注
M4: 合计 | N4: 资金安排
N5: 区财政预算资金 | O5: 其它来源资金
A6: 合计 | B6: 7宗 | J6: 144803 | L6: 47805 | M6: 27366 | N6: 24740 | O6: 2626
A7: 1 | B7: “四好农村路”建设项目工程 | C7: 续建 | D7: 交通基础设施 | E7: 区交通运输局 | F7: 区道路交通工程项目管理中心 | G7: 2018-2020 | H7: 区内各镇街 | I7: 计划实施农村公路路面硬化151公里，路基宽度4.5米，路面宽度3.5米，实现全区农村公路网络化、环状化；农村公路窄路面拓宽250公里，拓宽路面至少1米，实现行政村主车道双车道目标；农村公路“畅返不畅”改造项目300公里，实现农村公路美化亮化。 | J7: 47550 | K7: 完成农村公路路面硬化45公里，农村公路窄路面拓宽75公里，农村公路“畅返不畅”改造90公里 | L7: 15355 | M7: =N7+O7 -> 12000 | N7: 10000 | O7: 2000 | P7: 此项目包括农村公路路面硬化，农村公路窄路面拓宽和“畅返不畅”路面改造三项工程
A8: 2 | B8: 乡道Y697(镇高线)公路改造项目工程 | C8: 续建 | D8: 交通基础设施 | E8: 区交通运输局 | F8: 区道路交通工程项目管理中心 | G8: 2019-2020 | H8: 镇隆镇 | I8: 项目全长4.315公里，全线采用三级公路标准建设，设计时速为40km/h。其中K0+000至K0+720为新建四车道路段，路基标准宽18.5米，K0+720至K4+315为现有双向两车道旧路改造，路基标准宽度10米。 | J8: 3600 | K8: 完成新建路段的路基、路面及桥涵工程 | L8: 1500 | M8: 1200 | N8: 1200
A9: 3 | B9: 省道S356线（白云大道）淡水秋长段路面改造工程（一期） | C9: 续建 | D9: 交通基础设施 | E9: 区交通运输局 | F9: 区交通运输局 | G9: 2018-2020 | H9: 淡水街道 | I9: 项目全长5.847公里（东门桥-白云坑桥），按照一级公路兼城市主干道、双向六车道标准建设，建设内容包括路面工程、雨污水改造、给水工程、电力工程（仅计入过路暗管）、照明工程以及沿线交安设施等。 | J9: 31700 | K9: 完成项目北侧雨污水管道、路面、交安工程 | L9: 12500 | M9: 4626 | N9: 4000 | O9: 626
A10: 4 | B10: 将军东路（X225线黄竹沥至周田段）建设项目工程（一期） | C10: 续建 | D10: 交通基础设施 | E10: 区交通运输局 | F10: 区交通运输局 | G10: 2019-2021 | H10: 秋长街道、三和街道 | I10: 项目全长3.209公里，按路基宽42米，双向六车道、一级公路结合二级城市主干道标准（含排污排水工程）实施。 | J10: 29600 | K10: 完成全线雨污水管道、桥涵及路基建设 | L10: 11500 | M10: 3000 | N10: 3000
A11: 5 | B11: 迎宾大道、秋宝路清淤截污及三个坍塌应急抢险工程 | C11: 续建 | D11: 交通基础设施 | E11: 区交通运输局 | F11: 区交通运输局 | G11: 2019-2020 | H11: 秋长、淡水 | I11: 污水管道清淤、修复工程 | J11: 1250 | K11: 完成工程 | L11: 1250 | M11: 840 | N11: 840
A12: 6 | B12: 深汕高速惠阳西互通立交工程 | C12: 施工单位进场 | D12: 交通基础设施 | E12: 区交通运输局 | F12: 广东省高速公路有限公司深汕西分公司扩建管理处 | G12: 2019年12月至2023年12月 | H12: 惠州市惠阳区 | I12: 惠阳西互通位于惠阳区秋长街道附近与被交路规划城市主干道十字交叉，形成双T型立交，主线设计长度1.100Km，设计速度100Km/h,标准路基横断面宽42.0m；匝道设计长度2.364Km，A、 B、C、D、E 匝道设计速度均采用50Km/h，主线范围内共有小桥1 座；匝道上设置大桥3 座，小桥1 座。互通范围内共有涵洞15 道 | J12: 29586 | K12: 按计划完成全部征地拆迁后。计划在2020年完成路基工程60%，涵洞工程70%，桥梁基础工程60%，桥梁下构40% | L12: 5000 | M12: 5000 | N12: 5000 | P12: 已开工。该项目总投资29586万元，其中建安费14199万元，征地拆迁费11660万元，耕地指标购买费3030万元，水田指标购买费17万元，工程建设其他费用680万元。
A13: 7 | B13: 黄沙洞新教练场建设工程项目 | C13: 开工建设 | D13: 交通基础设施 | E13: 区交通运输局 | F13: 惠州市惠阳区机动车驾驶员培训学校 | G13: 2019-2021 | H13: 惠阳区淡水镇洋纳黄沙洞村 | I13: 该项目建设面积约40219平方米，按照二级驾校培训资格条件国标标准建设规模要求，整个项目建设工程预算资金约为1517万元。 | J13: 1517 | K13: 基本完成工程建设 | L13: 700 | M13: =N13+O13 -> 700 | N13: 700 | P13: 三年建设规划

Sheet 区公路管理局
A1: 区公路管理局2020年度政府投资计划
A3: 序号 | B3: 项目名称 | C3: 建设阶段 | D3: 项目分类 | E3: 牵头责任单位 | F3: 建设单位 | G3: 项目建设起止年限 | H3: 建设地点 | I3: 项目建设内容及规模 | J3: 总投资 （万元） | K3: 2020年度工作计划 | L3: 2020年计划投资 （工程量） （万元） | M3: 2020年资金安排计划（万元） | P3: 备注
M4: 合计 | N4: 资金安排
N5: 区财政预算资金 | O5: 其它来源资金
A6: 合计 | B6: 3宗 | J6: 2061300 | L6: 54000 | M6: 19350 | N6: 19350
A7: 1 | B7: 惠州机场疏港快线 | C7: 新建 | D7: 交通基础设施 | E7: 区公路管理局 | F7: 区公路管理局 | G7: 2020-2024 | H7: 惠阳区 | I7: 线路全长38.874公里，采用沥青砼路面，车道为“八主四辅”，路基宽度为65米，设计速度80公里/小时,按一级公路结合城市快速路标准建设,其中项目起点永湖镇彩二村至良井北联村段10.2公里，车道为“八主二辅”，路基宽度为60米，设计速度60公里/小时,按一级公路结合城市主干道标准建设。 | J7: 990600 | K7: 完成工可、立项调规、初步设计评审、全过程咨询招标工作、施工图评审以及施工招标等前期工作，随后启动一期工程建设。 | L7: 6000 | M7: =SUM(N7:O7) -> 2000 | N7: 2000
A8: 2 | B8: 深莞惠红色干线 | C8: 新建 | D8: 交通基础设施 | E8: 区公路管理局 | F8: 区公路管理局 | G8: 2020-2026 | H8: 惠阳区 | I8: 深莞惠红色干线项目，路线全长41.3km，按设计速度80km/h一级公路结合城市快速路的建设标准。横断面宽度：为40、40.5、65米，按主八辅四的建设标准。 | J8: 979000 | K8: 完成一期施工图设计的修编；完成相关前期专题；完成施工招标以及动工建设等。 | L8: 32000 | M8: 16000 | N8: 16000
A9: 3 | B9: 新清大道（原S358线惠阳新圩至东莞清溪段）改建工程 | C9: 新建 | D9: 交通基础设施 | E9: 区公路管理局 | F9: 区公路管理局 | G9: 2019-2021 | H9: 惠阳区 | I9: 路线全长约6.3公里，按双向六车道一级公路标准建设，路基宽33米,设计速度每小时80公里，路基规划宽33米。 | J9: 91700 | K9: 1、拟在1月份开展全过程工程咨询招标工作； 2、拟在3月份开展施工、设计总承包招标工作； 3、拟在6月份开展施工图评审工作。 | L9: 16000 | M9: 1350 | N9: 1350

Sheet 区环卫事务中心
A1: 区环卫事务中心2020年度政府投资计划
A3: 序号 | B3: 项目名称 | C3: 建设阶段 | D3: 项目分类 | E3: 牵头责任单位 | F3: 建设单位 | G3: 项目建设起止年限 | H3: 建设地点 | I3: 项目建设内容及规模 | J3: 总投资 （万元） | K3: 2020年度工作计划 | L3: 2020年计划投资 （工程量） （万元） | M3: 2020年资金安排计划（万元） | P3: 备注
M4: 合计 | N4: 资金安排
N5: 区财政预算资金 | O5: 其它来源资金
A6: 合计 | B6: 1宗 | J6: 281 | L6: 281 | M6: 281 | N6: 281
A7: 1 | B7: 厕所革命 | C7: 改建 | D7: 市政基础设施 | E7: 区环卫事务中心 | F7: 区环卫事务中心 | G7: 2020 | H7: 惠阳城区 | I7: 对环卫管理的7座公厕进行升级改造 | J7: 281 | K7: 完成城区7间公厕的升级改造 | L7: 281 | M7: =SUM(N7:O7) -> 281 | N7: 281 | P7: 《惠阳区厕所革命总体实施方案（2018-2020年）》（惠阳府办函〔2018〕151号）。

Sheet 镇隆镇
A1: 镇隆镇2020年度政府投资计划
A3: 序号 | B3: 项目名称 | C3: 建设阶段 | D3: 项目分类 | E3: 牵头责任单位 | F3: 建设单位 | G3: 项目建设起止年限 | H3: 建设地点 | I3: 项目建设内容及规模 | J3: 总投资 （万元） | K3: 2020年度工作计划 | L3: 2020年计划投资 （工程量） （万元） | M3: 2020年资金安排计划（万元） | P3: 备注
M4: 合计 | N4: 资金安排
N5: 区财政预算资金 | O5: 其它来源资金
A6: 合计 | B6: 1宗 | J6: 3874 | L6: 3874 | M6: 3874 | N6: 2320 | O6: 1554
A7: 1 | B7: 长龙高速出口改造工程 | C7: 启动编制可行性研究报告 | D7: 市政基础设施 | E7: 镇隆镇人民政府 | F7: 镇隆公用事业所 | G7: 2020年-2021年 | H7: 镇隆长龙 | I7: 工程计划投资3874.05万元，其中工程费用1943.48万元，工程其他费用260.65万元，预备费110.21万元，征拆补偿费用1559.72万元。 | J7: 3874 | K7: 已编制可行性研究报告，进行发改立项，聘请设计预算 | L7: 3874 | M7: =SUM(N7:O7) -> 3874 | N7: 2320 | O7: 1554 | P7: 五届61次区政府常务会议（惠阳府纪[2019]163号）、惠阳府办会函[2019]116号）
